{"text_format":"1","workbook":"xlsx","n_sheets":4,"sheets":["Zestawienie","Opis przedmiotu zam.","Drukarka A3","Arkusz cenowy"],"not_rendered":{"charts":0,"images":2,"macros":0,"external_links":0,"defined_names":13,"comments":0,"pivot_tables":0},"unopened":[],"bounds":{"document_bytes":16777216,"sheet_cells":100000,"rows_first":2000,"rows_last":500,"rows_between":2000,"halvings":0,"cell_chars":16384,"cell_head_chars":4096},"cells_cut":0,"cells_raw":0,"read":"whole","date_system":"1900"}

{"sheet":"Zestawienie","index":0,"n_rows":51,"n_cols":32,"rows_kept":51,"cut":false,"hidden":false,"merged":[[3,1,33,1],[35,1,38,1],[40,1,46,1]]}
[null,"Zestawienie zbiorcze"]
[null,null,null,null,1,2,3,4,5,6,7,8,9,10,11,12,13,14,15,16,17,18,19,20,21,22,23,24,25,26,27]
[null,null,null,"Poz. opisu","Instytut Matematyki","Instytut Geografii i Studiów Regionalnych","Sekcja ZP","Wydawnictwo Naukowe","Osiedle Akademickie","Sekcja Informatyki","Dziekanat NoZ","Instytut Pedagogiki","IBN","Zakładu Pedagogiki Społecznej i Resocjalizacyjnej.","Katedra Pielęgniarstwa","Instytut Polonistyki","Instytut Neofilologii","Prorektor ds.. Kształcenia Studentów ","Biuro Rektora","Sekcja Kadr i Spraw Socjalnych","Kanclerz","Instytut Historii","Katedra Zarządzania","SPNJO","Biuro ds.. Nauki","Instytut Biologii i Ochrony Środowiska","Wydział Nauk o Zarządzaniu i Bezpieczeństwie","Katedra Pracy Socjalnej","Sekcja Funduszy Zewnętrznych","Kwestura","Instytut Fizyki","ILOŚĆ RAZEM"]
[null,"CZĘŚĆ  I\nkomputery, monitory","Komputer stacjonarny ver. 1","1.01",null,null,null,null,1,null,null,null,null,null,null,null,2,null,2,null,1,null,null,null,1,1,null,null,null,null,null,{"$f":"SUM(E4:AE4)","v":8}]
[null,null,"Komputer stacjonarny ver. 2","1.02",null,null,null,null,null,null,null,null,null,null,null,null,1,null,1,null,null,null,null,null,null,null,null,null,null,null,null,2]
[null,null,"Laptop 2w1","1.03",null,null,null,null,null,null,null,null,1,null,null,null,null,null,null,null,null,null,null,null,null,null,null,null,null,null,null,1]
[null,null,"Monitor ver. 1","1.04",null,null,null,null,1,null,null,null,null,null,null,null,2,2,3,null,1,null,null,null,1,1,null,null,null,null,1,12]
[null,null,"Monitor ver. 2","1.05",null,null,null,null,null,null,null,null,null,null,null,null,1,null,null,null,null,null,null,null,null,null,null,null,null,null,null,1]
[null,null,"Komputer All in One ver. 1","1.06",null,null,null,null,null,null,null,null,null,null,null,null,null,null,null,null,null,1,null,null,null,null,null,null,null,null,null,1]
[null,null,"Komputer All in One ver. 2","1.07",null,null,null,null,null,null,null,3,null,null,null,null,null,null,null,null,null,null,null,null,null,null,null,null,null,null,null,3]
[null,null,"Laptop ver. 1","1.08",3,1,null,null,null,null,null,1,null,null,null,null,null,1,null,null,null,null,null,1,null,2,null,null,null,null,null,9]
[null,null,"Laptop ver. 2","1.09",null,null,1,null,null,null,null,1,null,1,null,null,null,null,null,1,1,null,null,null,null,null,null,null,null,1,null,6]
[null,null,"Laptop ver. 3","1.10",1,null,null,null,null,null,null,null,null,null,null,null,2,null,null,null,null,null,null,null,null,null,null,null,null,null,null,3]
[null,null,"Netbook ","1.11",null,null,null,null,null,null,null,null,null,null,null,null,null,null,1,null,null,null,null,null,1,null,null,null,null,null,null,2]
[null,null,"Drukarka ver. 1","1.12",null,null,null,null,null,null,null,null,null,null,null,null,2,null,null,null,null,null,null,null,null,null,null,null,null,null,null,2]
[null,null,"Drukarka ver. 2","1.13",null,null,null,null,null,null,null,null,null,null,null,null,null,null,null,null,null,null,null,null,1,null,null,null,null,null,null,1]
[null,null,"Urządzenie wielofunkcyjne ver. 1","1.14",null,null,null,null,null,null,null,null,null,null,1,1,null,null,null,null,null,null,null,null,null,null,1,null,null,null,null,3]
[null,null,"Urządzenie wielofunkcyjne ver. 2","1.15",null,null,null,null,null,1,1,null,null,null,null,null,null,null,null,null,null,null,1,null,null,1,null,null,null,null,null,4]
[null,null,"Urządzenie wielofunkcyjne ver. 3","1.16",null,1,null,null,null,null,null,null,null,null,null,null,null,null,null,null,null,null,null,null,null,null,null,null,null,null,null,1]
[null,null,"Skaner ręczny","1.17",null,null,null,null,null,null,null,2,null,null,null,null,null,null,null,null,null,null,null,null,null,null,null,null,null,null,null,2]
[null,null,"Listwa zasilająca","1.18",null,null,null,null,null,null,null,null,null,null,null,null,6,null,null,null,null,null,null,null,null,null,null,null,null,null,null,6]
[null,null,"Głośniki do komputera","1.19",null,null,null,null,null,null,null,null,null,null,null,null,null,null,null,null,null,null,null,2,null,null,null,null,null,null,null,2]
[null,null,"Switch biurkowy","1.20",null,2,null,null,null,3,null,null,null,null,null,null,2,null,null,null,null,null,null,null,null,null,null,1,2,null,null,10]
[null,null,"Router ","1.21",null,null,null,null,null,3,null,null,null,null,null,null,null,null,null,null,null,null,null,null,null,null,null,null,null,null,null,3]
[null,null,"Dysk zewnętrzny (przenośny) 2TB","1.22",3,2,null,null,null,null,null,null,null,null,null,null,null,null,null,null,null,2,null,null,null,null,null,null,null,null,2,9]
[null,null,"Dysk twardy 2TB","1.23",null,null,null,null,null,4,null,null,null,null,null,null,null,null,null,null,null,null,null,null,null,null,null,null,null,null,2,6]
[null,null,"Dysk twardy SSD","1.24",null,null,null,null,null,4,null,null,null,null,null,null,null,null,null,null,null,null,null,null,null,null,null,null,null,null,null,4]
[null,null,"Pendrive 32GB","1.25",null,null,null,null,null,null,null,null,null,null,null,null,null,null,null,null,null,6,null,null,null,null,null,null,null,null,null,6]
[null,null,"Karta pamięci 16GB microSD","1.26",null,null,null,null,null,null,null,null,null,null,null,null,null,null,null,null,null,2,null,null,null,null,null,null,null,null,null,2]
[null,null,"Myszka przewodowa","1.27",null,null,null,null,null,null,null,null,null,null,null,null,null,null,null,null,null,null,null,null,null,null,null,null,null,null,4,4]
[null,null,"Pamięć SODIM","1.28",null,null,null,null,null,null,null,null,null,null,null,null,null,null,null,null,null,1,null,null,null,null,null,null,null,null,null,1]
[null,null,"Zestaw narzędzi sieciowych","1.29",null,null,null,null,null,1,null,null,null,null,null,null,null,null,null,null,null,null,null,null,null,null,null,null,null,null,null,1]
[null,null,"Power bank","1.30",null,null,null,null,null,null,null,null,null,null,null,null,null,null,null,null,null,null,null,null,null,null,null,null,null,null,2,2]
[null,null,"Pilot do sterowania PC z funkcja prezentera","1.31",null,null,null,null,null,null,null,null,null,null,null,null,null,null,null,null,null,null,null,null,null,null,null,null,null,null,1,1]
[]
[null,"CZĘŚĆ II\nSprzęt audio-video","Uchwyt projektora ","2.01",null,null,null,null,null,null,null,null,null,null,null,null,null,null,null,null,null,null,null,1,null,null,null,null,null,null,null,{"$f":"SUM(E36:AE36)","v":1}]
[null,null,"Projektor ver. 1","2.02",null,null,null,null,null,null,null,1,null,null,null,null,null,null,null,null,null,null,null,null,null,null,null,null,null,null,null,{"$f":"SUM(E37:AE37)","v":1}]
[null,null,"Projektor ver. 2","2.03",null,null,null,null,null,null,null,null,null,null,null,null,null,null,null,null,null,null,null,1,null,1,null,null,null,null,null,{"$f":"SUM(E38:AE38)","v":2}]
[null,null,"Tablica interaktywna ","2.04",null,1,null,null,null,null,null,null,null,null,null,null,null,null,null,null,null,null,null,null,null,null,null,null,null,null,null,{"$f":"SUM(E39:AE39)","v":1}]
[]
[null,"CZĘŚĆ III\nOprogramowanie","Pakiet oprogramowania biurowego","3.01",3,1,1,null,1,null,null,2,null,1,null,null,6,1,5,1,2,1,null,1,2,6,null,null,1,1,null,{"$f":"SUM(E41:AE41)","v":36}]
[null,null,"Oprogramowanie edukacyjne do tablicy interaktywnej","3.02",null,null,null,null,null,null,null,null,null,null,null,null,1,null,null,null,null,null,null,null,null,null,null,null,null,null,null,1]
[null,null,"Microsoft Windows Home 10 32/64 bit BOX USB PL","3.03",null,null,null,null,null,2,null,null,null,null,null,null,null,null,null,null,null,null,null,null,null,null,null,null,null,null,null,2]
[null,null,"Oprogramowanie WinEdit ","3.04",3,null,null,null,null,null,null,null,null,null,null,null,null,null,null,null,null,null,null,null,null,null,null,null,null,null,null,3]
[null,null,"Oprogramowanie do obliczeń symbolicznych.","3.05",1,null,null,null,null,null,null,null,null,null,null,null,null,null,null,null,null,null,null,null,null,null,null,null,null,null,null,1]
[null,null,"Pakiet oprogramowania biurowego dla MacOS","3.06",1,null,null,null,null,null,null,null,null,null,null,null,null,null,null,null,null,null,null,null,null,null,null,null,null,null,null,1]
[null,null,"Pinnacle Studio 22 Ultimate PL","3.07",null,null,null,null,null,null,null,null,null,null,null,null,null,null,1,null,null,null,null,null,null,null,null,null,null,null,null,1]
[]
[null,"CZ. IV","Urządzenie wielofunkcyjne A3","4.01",null,null,null,1,null,null,null,null,null,null,null,null,null,null,null,null,null,null,null,null,null,null,null,null,null,null,null,{"$f":"SUM(E49:AE49)","v":1}]
[]
[null,"CZ. V","Tablica interaktywna z projektorem i montażem","5.01",null,null,null,null,null,null,null,null,null,null,null,null,null,null,null,null,null,null,null,1,null,null,null,null,null,null,null,{"$f":"SUM(E51:AE51)","v":1}]

{"sheet":"Opis przedmiotu zam.","index":1,"n_rows":809,"n_cols":5,"rows_kept":809,"cut":false,"hidden":false,"merged":[[123,2,127,2],[128,2,129,2],[130,2,131,2],[402,2,403,2],[156,2,157,2],[179,2,183,2],[260,2,261,2],[262,2,268,2],[333,2,336,2],[351,2,358,2],[184,2,186,2],[302,2,305,2],[191,2,192,2],[230,2,232,2],[367,2,369,2],[371,2,372,2],[349,2,350,2],[340,2,342,2],[343,2,345,2],[329,2,332,2],[316,2,318,2],[207,2,213,2],[214,2,217,2],[163,2,164,2],[45,2,47,2],[51,2,55,2],[57,2,63,2],[64,2,65,2],[49,2,50,2],[121,2,122,2],[86,2,87,2],[98,2,102,2],[104,2,106,2],[428,2,430,2],[147,2,148,2],[149,2,153,2],[154,2,155,2],[802,2,802,4],[757,2,757,4],[728,2,728,4],[618,2,618,3],[621,2,621,3],[622,2,622,3],[629,2,629,3],[639,2,639,3],[649,2,649,3],[749,2,749,4],[705,2,705,4],[747,2,747,4],[655,1,655,4],[707,2,707,4],[682,2,682,4],[683,2,683,4],[741,2,741,4],[673,2,673,4],[714,2,714,4],[718,2,718,4],[601,2,601,3],[606,2,606,3],[422,2,424,2],[562,2,564,2],[256,2,258,2],[234,2,235,2],[662,2,662,4],[743,2,743,4],[2,1,2,4],[222,2,223,2],[4,2,4,3],[77,2,80,2],[82,2,85,2],[583,2,583,3],[512,2,512,3],[539,2,540,2],[580,2,580,3],[534,2,537,2],[420,2,421,2],[236,2,241,2],[281,2,282,2],[300,2,301,2],[200,2,202,2],[204,2,206,2],[586,2,586,3],[708,2,708,4],[709,2,709,4],[704,1,704,4],[320,2,325,2],[293,2,295,2],[172,2,174,2],[176,2,178,2],[719,2,719,4],[609,2,609,3],[604,2,604,3],[614,2,614,3],[497,2,498,2],[500,2,501,2],[505,2,510,2],[572,2,576,2],[485,2,485,3],[587,2,587,3],[599,2,599,3],[550,2,558,2],[560,2,561,2],[532,2,533,2],[414,2,416,2],[605,2,605,3]]}
[null,"ZAŁĄCZNIK 2.  Opis i parametry zamawianego sprzętu"]
[]
[null,"Jeżeli w opisie przedmiotu zamówienia wskazano jakikolwiek znak towarowy, patent czy pochodzenie, należy przyjąć, że wskazane patenty, znaki towarowe, pochodzenie określają parametry techniczne, eksploatacyjne, użytkowe, co oznacza, że Zamawiający dopuszcza złożenie oferty w tej części przedmiotu zamówienia o równoważnych parametrach technicznych, eksploatacyjnych i użytkowych.\nW celu umożliwienia Zamawiającemu odpowiedniej weryfikacji zaoferowanego sprzętu lub oprogramowania pod kątem minimalnych wymagań należy podać dokładną nazwę producenta, model, procesor, nr katalogowy itp. Nie poduszcza się wpisania wyrażeń typu: spełnia, spełniający minimalne wymagania itd.  Wszystkie opisane parametry wymagane są wymaganiami minimalnymi. Zamawiający akceptuje rozwiązania o parametrach równoważnych lub lepszych, bez utraty funkcjonalności i wydajności."]
[]
[null,null,"CZĘŚĆ I - SPRZĘT KOMPUTEROWY"]
[]
[null,"Poz.",null,"Opis Zamawiającego","Opis Wykonawcy \n(producent i model, procesor i inne parametry )"]
[null,null,{"$f":"CONCATENATE(\"      ilość:  \",Zestawienie!AF4)","v":"      ilość:  8"},{"$f":"Zestawienie!C4","v":"Komputer stacjonarny ver. 1"}]
[null,{"$f":"Zestawienie!D4","v":"1.01"},"Typ: ","komputer stacjonarny do pracowni multimedialnej"]
[null,null,"Procesor:"," - zgodny z architekturą x86 i x64\n - Procesor minimum czterordzeniowy, osiągający w teście PassMark CPU Mark wynik \n    min. 4885 punktów Zamawiający będzie weryfikował ten parametr na podstawie \n    danych z drugiej kolumny tabeli z wynikami testów procesorów, które są załącznikiem \n    do SIWZ \n - Procesor musi obsługiwać 64 bitowe systemy "]
[null,null,"Ilość rdzeni:"," min. 4"]
[null,null,"Pamięć:"," min. 8 GB "]
[null,null,"Napęd  optyczny: ","DVD+/-RW"]
[null,null,"Dysk HD: ","min. HDD 1TB SATA3 "]
[null,null,"Karta graficzna: ","dowolna z dwoma wyjściami DVI lub HDMI"]
[null,null,"Karta dźwiękowa:","dowolna "]
[null,null,"Komunikacja:","LAN 10/100/1000 Mbps"]
[null,null,"Interface:","min z przodu 2 x USB 3.0  "]
[null,null,"Dod. funkcjonalność:","miniTower ATX,  klawiatura,  mysz optyczna"]
[null,null,"System: ","Preinstalowany system operacyjny ver. 1,  klasy PC musi spełniać  wymagania według poniższego załącznika  (przypis 1) poprzez wbudowane mechanizmy, bez użycia dodatkowych aplikacji (np. Windows 10 lub równoważny wg opisu )."]
[null,null,"Zasilacz: ","min. 400 W, certyfikat sprawności: 80 plus"]
[]
[null,null,{"$f":"CONCATENATE(\"      ilość:  \",Zestawienie!AF5)","v":"      ilość:  2"},{"$f":"Zestawienie!C5","v":"Komputer stacjonarny ver. 2"}]
[null,{"$f":"Zestawienie!D5","v":"1.02"},"Przeznaczenie","Komputer będzie wykorzystywany do celów dydaktycznych i programów specjalistycznych (statycznych, graficznych, obliczeniowych) "]
[null,null,"Procesor:"," - zgodny z architekturą x86 i x64\n - Procesor minimum czterordzeniowy, osiągający w teście PassMark CPU Mark wynik \n    min. 8000 punktów Zamawiający będzie weryfikował ten parametr na podstawie \n    danych z drugiej kolumny tabeli z wynikami testów procesorów, które są załącznikiem\n    do SIWZ \n - Procesor musi obsługiwać 64 bitowe systemy (np. i7-2600)"]
[null,null,"Ilość rdzeni:"," min. 4"]
[null,null,"Pamięć:"," min. 8 GB "]
[null,null,"Napęd  optyczny: ","DVD+/-RW"]
[null,null,"Dysk HD: ","min. SSHD 1TB  SATA3 7200 obr/min "]
[null,null,"Karta graficzna: ","AMD Radeon HD6450 lub równoważna min. 2GB RAM"]
[null,null,"Karta dźwiękowa:","dowolna "]
[null,null,"Komunikacja:","LAN 10/100/1000 Mbps\nBluetooth\nIntel Wireless Display (WiDi)\nWi-Fi 802.11 b/g/n/ac"]
[null,null,"Interface:","min z przodu 2 x USB 3.0  "]
[null,null,"Dod. funkcjonalność:","klawiatura,  mysz optyczna"]
[null,null,"System: ","Preinstalowany system operacyjny ver. 1,  klasy PC musi spełniać  wymagania według poniższego załącznika  (przypis 1) poprzez wbudowane mechanizmy, bez użycia dodatkowych aplikacji (np. Windows 10 lub równoważny wg opisu )."]
[]
[null,null,{"$f":"CONCATENATE(\"      ilość:  \",Zestawienie!AF6)","v":"      ilość:  1"},{"$f":"Zestawienie!C6","v":"Laptop 2w1"}]
[null,{"$f":"Zestawienie!D6","v":"1.03"},"Przeznaczenie","Laptop przenośny pełniący funkcje tabletu "]
[null,null,"Procesor:"," - zgodny z architekturą x86 i x64\n - Procesor minimum czterordzeniowy, osiągający w teście PassMark CPU Mark wynik \n    min. 5100 punktów Zamawiający będzie weryfikował ten parametr na podstawie \n    danych z drugiej kolumny tabeli z wynikami testów procesorów, które są załącznikiem\n    do SIWZ (np i5-7300U)\n - Procesor musi obsługiwać 64 bitowe systemy "]
[null,null,"Pamięć RAM","8 GB "]
[null,null,"Dysk SSD M.2 PCIe","128 GB"]
[null,null,"Typ ekranu","Błyszczący, LED, dotykowy"]
[null,null,"Przekątna ekranu","12,3\""]
[null,null,"Rozdzielczość ekranu","2736 x 1824"]
[null,null,"Karta graficzna","Intel HD Graphics 620"]
[null,null,"Dźwięk","Wbudowane głośniki stereo"]
[null,null,null,"Wbudowany mikrofon"]
[null,null,null,"Zintegrowana karta dźwiękowa zgodna z Intel High Definition Audio"]
[null,null,"Kamera internetowa","5.0 Mpix"]
[null,null,"Łączność","Wi-Fi 802.11 a/b/g/n/ac"]
[null,null,null,"Moduł Bluetooth"]
[null,null,"Rodzaje wejść / wyjść","USB 3.1 Gen. 1 (USB 3.0) - 1 szt."]
[null,null,null,"Czytnik kart pamięci - 1 szt."]
[null,null,null,"Mini Display Port - 1 szt."]
[null,null,null,"Wyjście słuchawkowe/głośnikowe - 1 szt."]
[null,null,null,"Złącze stacji dokującej - 1 szt."]
[null,null,"Zainstalowany system operacyjny","Microsoft Windows 10 Pro PL (wersja 64-bitowa)"]
[null,null,"Dodatkowe informacje","Magnezowa pokrywa matrycy"]
[null,null,null,"Corning Gorilla Glass 4"]
[null,null,null,"Wielodotykowy, intuicyjny touchpad"]
[null,null,null,"Czujnik światła"]
[null,null,null,"Akcelerometr"]
[null,null,null,"Żyroskop"]
[null,null,null,"Szyfrowanie TPM"]
[null,null,"Dołączone akcesoria","Zasilacz"]
[null,null,null,"Klawiatura"]
[null,null,null,"np. Microsoft Surface Pro"]
[]
[null,null,{"$f":"CONCATENATE(\"      ilość:  \",Zestawienie!AF7)","v":"      ilość:  12"},{"$f":"Zestawienie!C7","v":"Monitor ver. 1"}]
[null,{"$f":"Zestawienie!D7","v":"1.04"},"Przekątna ekranu","w przedziale  24\" - 25\"  "]
[null,null,"Powłoka matrycy","Matowa"]
[null,null,"Rodzaj matrycy","LED, IPS"]
[null,null,"Rozdzielczość ekranu","1920 x 1080 (FullHD)"]
[null,null,"Format ekranu","16:09:00"]
[null,null,"Częstotliwość odświeżania","min. 75 Hz"]
[null,null,"Wielkość plamki","max. 0,28 mm"]
[null,null,"Jasność","min. 250 cd/m²"]
[null,null,"Rodzaje wejść / wyjść (min.)","Wyjście audio - 1 szt."]
[null,null,null,"min. HDMI - 1 szt."]
[null,null,null,"min. DVI- 1 szt."]
[null,null,null,"DC-in (wejście zasilania) - 1 szt."]
[null,null,"Głośniki","Tak"]
[null,null,"Dodatkowe informacje","Możliwość zabezpieczenia linką (Kensington Lock)"]
[null,null,null,"Możliwość montażu na ścianie - VESA"]
[null,null,null,"kolor obudowy: czarny"]
[null,null,null,"Regulacja kąta pochylenia (Tilt)"]
[null,null,"Inne","Otwory montażowe w obudowie VESA "]
[null,null,null,"Komplet kabli: graficzne ( HDMI, DVI ), zasilające, audio"]
[]
[null,null,{"$f":"CONCATENATE(\"      ilość:  \",Zestawienie!AF8)","v":"      ilość:  1"},{"$f":"Zestawienie!C8","v":"Monitor ver. 2"}]
[null,{"$f":"Zestawienie!D8","v":"1.05"},"Przekątna ekranu","w przedziale  27\""]
[null,null,"Rodzaj matrycy","LED, IPS"]
[null,null,"Rozdzielczość ekranu","2560 x 1440 (WQHD)"]
[null,null,"Format ekranu"," 16:9"]
[null,null,"Częstotliwość odświeżania","min. 70 Hz"]
[null,null,"Kontrast statyczny","min. 1 000 :1"]
[null,null,"Czas reakcji","max. 2 ms"]
[null,null,"Liczba wyświetlanych kolorów","16,7 mln"]
[null,null,"Rodzaje wejść / wyjść","min. DVI - 1 szt."]
[null,null,null,"min. DP - 1 szt."]
[null,null,null,"Wejście audio - 1 szt."]
[null,null,null,"min. HDMI - 1 szt."]
[null,null,null,"Wyjście słuchawkowe - 1 szt."]
[null,null,"Głośniki","Tak "]
[null,null,"Dodatkowe informacje","Regulacja kąta pochylenia (Tilt)"]
[null,null,null,"Możliwość montażu na ścianie - VESA"]
[null,null,null,"Możliwość zabezpieczenia linką (Kensington Lock)"]
[null,null,"Dołączone akcesoria","kabel VGA, kabel HDMI, kabel DVI, kabel audio"]
[]
[null,null,{"$f":"CONCATENATE(\"      ilość:  \",Zestawienie!AF9)","v":"      ilość:  1"},{"$f":"Zestawienie!C9","v":"Komputer All in One ver. 1"}]
[null,{"$f":"Zestawienie!D9","v":"1.06"},"Przeznaczenie","Komputer będzie wykorzystywany do celów dydaktycznych i programów specjalistycznych (statycznych, graficznych, obliczeniowych) "]
[null,null,"Typ","komputer typu All In One"]
[null,null,"Wersja językowa ","polska"]
[null,null,"Ekran","min. 21,5 cala  (1920 x 1080 pikseli)"]
[null,null,"Płyta główna","Zintegrowana w obudowie z monitorem tzw. all-in-one"]
[null,null,"Procesor","Osiągający co najmniej 9600 punktów w teście wydajnościowym PassMark CPU Benchmarks wg. kolumny Passmark CPU Mark,Zamawiający będzie weryfikował ten parametr na podstawie danych z drugiej kolumny tabeli z wynikami testów procesorów, które są załącznikiem do SIWZ Procesor musi obsługiwać 64 bitowe systemy"]
[null,null,"Pamięć operacyjna","Min. 8 GB, o MAX częstotliwości wspieranej przez zaoferowany procesor"]
[null,null,"Dysk HD:","min. HDD 1000 GB  "]
[null,null,"Rodzaj napędu","Super Multi DVD+/-RW/RAM"]
[null,null,"Karta dźwiękowa","Karta dźwiękowa zintegrowana z płytą główną, wbudowane głośniki"]
[null,null,"Karta graficzna","pamięć min. 2GB"]
[null,null,"Karta sieciowa","10/100/1000 Ethernet RJ45"]
[null,null,null," Wi-Fi 802.11 b/g/n"]
[null,null,"Wyjścia/wejścia","Złącza HDMI"]
[null,null,null,"Złącza USB 3.0 – min. 3"]
[null,null,null,"Wejście liniowe audio"]
[null,null,null,"Wyjście liniowe audio"]
[null,null,null,"Czytnik kart pamięci"]
[null,null,"Komunikacja","Karta bezprzewodowa WiFi - 802.11b/g/n"]
[null,null,null,"Bluetooth  "]
[null,null,"Wyposażenie","Klawiatura bezprzewodowa w układzie QWERTY dająca możliwość zastosowania układu „polski programisty” z wydzielonym blokiem klawiszy numerycznych"]
[null,null,null,"Mysz optyczna  bezprzewodowa"]
[null,null,"Obudowa","Typu all-in-one z minimum 21,5-calowym wyświetlaczu Full HD (1080p) , wbudowane głośniki i kamera internetowa"]
[null,null,"zainstalowany system operacyjny","Preinstalowany system operacyjny ver. 1,  klasy PC musi spełniać  wymagania według poniższego załącznika  (przypis 1) poprzez wbudowane mechanizmy, bez użycia dodatkowych aplikacji (np. Windows 10 lub równoważny wg opisu )."]
[]
[null,null,{"$f":"CONCATENATE(\"      ilość:  \",Zestawienie!AF10)","v":"      ilość:  3"},{"$f":"Zestawienie!C10","v":"Komputer All in One ver. 2"}]
[null,{"$f":"Zestawienie!D10","v":"1.07"},"Przeznaczenie","Komputer będzie wykorzystywany do celów dydaktycznych i programów specjalistycznych "]
[null,null,"Typ","komputer typu All In One"]
[null,null,"Wersja językowa ","polska"]
[null,null,"Ekran","min. 21,5 cala  (1920 x 1080 pikseli)"]
[null,null,"Płyta główna","Zintegrowana w obudowie z monitorem tzw. all-in-one"]
[null,null,"Procesor","Osiągający co najmniej 3000 punktów w teście wydajnościowym PassMark CPU Benchmarks wg. kolumny Passmark CPU Mark,Zamawiający będzie weryfikował ten parametr na podstawie danych z drugiej kolumny tabeli z wynikami testów procesorów, które są załącznikiem do SIWZ Procesor musi obsługiwać 64 bitowe systemy (np. i3-6006U )"]
[null,null,"Pamięć operacyjna","Min. 4 GB, o MAX częstotliwości wspieranej przez zaoferowany procesor"]
[null,null,"Dysk HD:","min. HDD 1000 GB  "]
[null,null,"Rodzaj napędu","Super Multi DVD+/-RW/RAM"]
[null,null,"Karta dźwiękowa","Karta dźwiękowa zintegrowana z płytą główną, wbudowane głośniki"]
[null,null,"Karta graficzna","Dowolna"]
[null,null,"Karta sieciowa","min 10/100 Ethernet RJ45"]
[null,null,null," Wi-Fi 802.11 b/g/n"]
[null,null,"Wyjścia/wejścia","Złącza HDMI"]
[null,null,null,"Złącza USB 2.0 – min. 2"]
[null,null,null,"Wejście liniowe audio"]
[null,null,null,"Wyjście liniowe audio"]
[null,null,null,"Czytnik kart pamięci"]
[null,null,"Komunikacja","Karta bezprzewodowa WiFi - 802.11b/g/n"]
[null,null,null,"Bluetooth  "]
[null,null,"Wyposażenie","Klawiatura USB bezprzewodowa w układzie QWERTY dająca możliwość zastosowania układu „polski programisty” z wydzielonym blokiem klawiszy numerycznych"]
[null,null,null,"Mysz optyczna USB dwuprzyciskowa z rolką (scroll)"]
[null,null,"Obudowa","Typu all-in-one z minimum 21,5-calowym wyświetlaczu Full HD (1080p) "]
[null,null,"zainstalowany system operacyjny","Preinstalowany system operacyjny ver. 1,  klasy PC musi spełniać  wymagania według poniższego załącznika  (przypis 1) poprzez wbudowane mechanizmy, bez użycia dodatkowych aplikacji (np. Windows 10 lub równoważny wg opisu )."]
[]
[null,null,{"$f":"CONCATENATE(\"      ilość:  \",Zestawienie!AF11)","v":"      ilość:  9"},{"$f":"Zestawienie!C11","v":"Laptop ver. 1"}]
[null,{"$f":"Zestawienie!D11","v":"1.08"},"typ","Komputer przenośny typu  laptop. Przeznaczony dla potrzeb pracy na programach graficznych, aplikacji biurowych, aplikacji edukacyjnych, aplikacji obliczeniowych, dostępu do Internetu oraz poczty elektronicznej, jako lokalna baza danych, stacja programistyczna"]
[null,null,"Procesor"," - zgodny z architekturą x86 i x64"]
[null,null,null," - osiągający, co najmniej 3700 punktów w teście wydajnościowym PassMark CPU Benchmarks wg. kolumny Passmark CPU Mark, Zamawiający będzie weryfikował ten parametr na podstawie danych z drugiej kolumny tabeli z wynikami testów procesorów, które są załącznikiem do SIWZ\n - na przykład:  i5-7200U lub równoważny"]
[null,null,"Pamięć RAM","min 8 GB "]
[null,null,"Dysk twardy","min. 1000 GB "]
[null,null,"Wbudowane napędy optyczne","Nagrywarka DVD+/-RW DualLayer"]
[null,null,"Typ ekranu","Matowy, LED"]
[null,null,"Przekątna ekranu","15,6\""]
[null,null,"Rozdzielczość ekranu","1920 x 1080 (FullHD)"]
[null,null,"Karta graficzna","Dowolna zintegrowana"]
[null,null,"Dźwięk","Zintegrowana karta dźwiękowa zgodna z Intel High Definition Audio"]
[null,null,null,"Wbudowany mikrofon"]
[null,null,null,"Wbudowane głośniki stereo"]
[null,null,"Kamera internetowa","min. 1.0 Mpix"]
[null,null,"Łączność","LAN 10/100/1000 Mbps"]
[null,null,null,"Moduł Bluetooth"]
[null,null,null,"Wi-Fi 802.11 a/b/g/n/ac"]
[null,null,"Rodzaje wejść / wyjść","min. USB 2.0 - 2 szt."]
[null,null,null,"Wyjście słuchawkowe/wejście mikrofonowe - 1 szt."]
[null,null,null,"VGA (D-sub) lub przejściówka HDMI - VGA"]
[null,null,null,"Czytnik kart pamięci - 1 szt."]
[null,null,null,"HDMI - 1 szt."]
[null,null,"dodatkowe wypos./funkc.","Torba, mysz"]
[null,null,null,"Możliwość zabezpieczenia linką (port Kensington Lock)"]
[null,null,null,"Wydzielona klawiatura numeryczna"]
[null,null,"zainstalowany system operacyjny","Preinstalowany system operacyjny ver. 1,  klasy PC musi spełniać  wymagania według poniższego załącznika  (przypis 1) poprzez wbudowane mechanizmy, bez użycia dodatkowych aplikacji (np. Windows 10 lub równoważny wg opisu )."]
[]
[null,null,{"$f":"CONCATENATE(\"      ilość:  \",Zestawienie!AF12)","v":"      ilość:  6"},{"$f":"Zestawienie!C12","v":"Laptop ver. 2"}]
[null,{"$f":"Zestawienie!D12","v":"1.09"},"typ","Komputer przenośny typu  laptop. Przeznaczony dla potrzeb pracy na programach graficznych, aplikacji biurowych, aplikacji edukacyjnych, aplikacji obliczeniowych, dostępu do Internetu oraz poczty elektronicznej, jako lokalna baza danych, stacja programistyczna"]
[null,null,"Procesor"," - zgodny z architekturą x86 i x64"]
[null,null,null," - osiągający, co najmniej 7600 punktów w teście wydajnościowym PassMark CPU Benchmarks wg. kolumny Passmark CPU Mark, Zamawiający będzie weryfikował ten parametr na podstawie danych z drugiej kolumny tabeli z wynikami testów procesorów, które są załącznikiem do SIWZ\n - na przykład:  i5-8250U lub równoważny"]
[null,null,"Pamięć RAM","min 8 GB "]
[null,null,"Dysk twardy","min. 240 GB SSD + 1000 GB HDD "]
[null,null,"Wbudowane napędy optyczne","Nagrywarka DVD+/-RW DualLayer"]
[null,null,"Typ ekranu","Matowy, LED"]
[null,null,"Przekątna ekranu",15.6]
[null,null,"Rozdzielczość ekranu","1920 x 1080 (FullHD)"]
[null,null,"Karta graficzna","Dowolna"]
[null,null,"Dźwięk","Zintegrowana karta dźwiękowa zgodna z Intel High Definition Audio"]
[null,null,null,"Wbudowany mikrofon"]
[null,null,null,"Wbudowane głośniki stereo"]
[null,null,"Kamera internetowa","1.0 Mpix"]
[null,null,"Łączność","LAN 10/100/1000 Mbps"]
[null,null,null,"Moduł Bluetooth"]
[null,null,null,"Wi-Fi 802.11 a/b/g/n/ac"]
[null,null,"Rodzaje wejść / wyjść","USB Typu-C"]
[null,null,null,"Czytnik kart pamięci "]
[null,null,null,"Wyjście słuchawkowe/wejście mikrofonowe"]
[null,null,null,"USB 3.1 Gen. 1 (USB 3.0) "]
[null,null,null,"USB 2.0 "]
[null,null,null,"RJ-45 (LAN) - 1 szt."]
[null,null,null,"HDMI "]
[null,null,"dodatkowe wypos./funkc.","Przejściówka HDMI -> VGA"]
[null,null,null,"Torba, mysz"]
[null,null,null,"Możliwość zabezpieczenia linką (port Kensington Lock)"]
[null,null,null,"np.. Dell Inspiron 5570 i5-8250U lub równoważny"]
[null,null,"zainstalowany system operacyjny","Preinstalowany system operacyjny ver. 1,  klasy PC musi spełniać  wymagania według poniższego załącznika  (przypis 1) poprzez wbudowane mechanizmy, bez użycia dodatkowych aplikacji (np. Windows 10 lub równoważny wg opisu )."]
[]
[null,null,{"$f":"CONCATENATE(\"      ilość:  \",Zestawienie!AF13)","v":"      ilość:  3"},{"$f":"Zestawienie!C13","v":"Laptop ver. 3"}]
[null,{"$f":"Zestawienie!D13","v":"1.10"},"typ","Komputer przenośny typu  laptop. Przeznaczony dla potrzeb pracy na programach graficznych, aplikacji biurowych, aplikacji edukacyjnych, aplikacji obliczeniowych, dostępu do Internetu oraz poczty elektronicznej, jako lokalna baza danych, stacja programistyczna"]
[null,null,"Procesor"," - zgodny z architekturą x86 i x64"]
[null,null,null," - osiągający, co najmniej 8000 punktów w teście wydajnościowym PassMark CPU Benchmarks wg. kolumny Passmark CPU Mark, Zamawiający będzie weryfikował ten parametr na podstawie danych z drugiej kolumny tabeli z wynikami testów procesorów, które są załącznikiem do SIWZ\n - min. 4 rdzenie (np.  i7-8550U)"]
[null,null,"Pamięć RAM","min. 16 GB "]
[null,null,"Dysk twardy","min. 128 GB SSD + 1TB HDD"]
[null,null,"Typ ekranu","Matowy, LED"]
[null,null,"Przekątna ekranu","17,3\""]
[null,null,"Rozdzielczość ekranu","min. 1920 x 1080 (FullHD)"]
[null,null,"Karta graficzna","Dedykowana"]
[null,null,"Dźwięk","Zintegrowana karta dźwiękowa zgodna z Intel High Definition Audio"]
[null,null,null,"Wbudowany mikrofon"]
[null,null,null,"Wbudowane głośniki stereo"]
[null,null,"Kamera internetowa","min. 1.0 Mpix"]
[null,null,"Łączność","Wi-Fi 802.11 b/g/n/ac"]
[null,null,null,"Moduł Bluetooth"]
[null,null,"Rodzaje wejść / wyjść","HDMI"]
[null,null,null,"DC-in (wejście zasilania) - 1 szt."]
[null,null,null,"Wyjście słuchawkowe/wejście mikrofonowe - 1 szt."]
[null,null,null,"min. USB 2.0 - 1 szt."]
[null,null,null,"Czytnik kart pamięci"]
[null,null,null,"min. USB 3.1 Gen. 1 (USB 3.0) - 3 szt."]
[null,null,"Zainstalowany system operacyjny","Preinstalowany system operacyjny ver. 1,  klasy PC musi spełniać  wymagania według poniższego załącznika  (przypis 1) poprzez wbudowane mechanizmy, bez użycia dodatkowych aplikacji (np. Windows 10 lub równoważny wg opisu )."]
[null,null,"Dodatkowe informacje","Wielodotykowy, intuicyjny touchpad"]
[null,null,null,"Torba, mysz"]
[]
[]
[null,null,{"$f":"CONCATENATE(\"      ilość:  \",Zestawienie!AF14)","v":"      ilość:  2"},{"$f":"Zestawienie!C14","v":"Netbook "}]
[null,{"$f":"Zestawienie!D14","v":"1.11"},"Typ","Komputer będie współpracował z aplikacjami sieciowymi i Internetowymi"]
[null,null,"Procesor"," - osiągający, co najmniej 1100 punktów w teście wydajnościowym PassMark CPU Benchmarks wg. kolumny Passmark CPU Mark, Zamawiający będzie weryfikował ten parametr na podstawie danych z drugiej kolumny tabeli z wynikami testów procesorów, które są załącznikiem do SIWZ"]
[null,null,"Pamięć RAM","min 4 GB"]
[null,null,"Dysk","min 64 GB eMMC lub 500 GB HDD"]
[null,null,"Typ ekranu","Błyszczący, LED"]
[null,null,"Przekątna ekranu","11,6\""]
[null,null,"Rozdzielczość ekranu","min 1366 x 768 (HD)"]
[null,null,"Karta graficzna","Dowolna"]
[null,null,"Dźwięk","Wbudowany głośnik mono"]
[null,null,null,"Wbudowany mikrofon"]
[null,null,null,"Zintegrowana karta dźwiękowa zgodna z Intel High Definition Audio"]
[null,null,"Kamera internetowa","min 0.3 Mpix"]
[null,null,"Łączność","Wi-Fi 802.11 a/b/g/n/ac"]
[null,null,null,"Moduł Bluetooth"]
[null,null,"Rodzaje wejść / wyjść","USB 3.1 Gen. 1 (USB 3.0)"]
[null,null,null,"USB Typu-C "]
[null,null,null,"HDMI"]
[null,null,null,"VGA lub przejściówka HDMI -> VGA"]
[null,null,null,"Czytnik kart pamięci microSD - 1 szt."]
[null,null,null,"Wyjście słuchawkowe/wejście mikrofonowe - 1 szt."]
[null,null,null,"DC-in (wejście zasilania) - 1 szt."]
[null,null,"Zainstalowany system operacyjny","Microsoft Windows 10 Home PL (wersja 64-bitowa)"]
[null,null,"Dodatkowe informacje","Wielodotykowy, intuicyjny touchpad, "]
[]
[]
[null,null,{"$f":"CONCATENATE(\"      ilość:  \",Zestawienie!AF15)","v":"      ilość:  2"},{"$f":"Zestawienie!C15","v":"Drukarka ver. 1"}]
[null,{"$f":"Zestawienie!D15","v":"1.12"},"Technologia druku","Laserowa, monochromatyczna"]
[null,null,"Maksymalny format nośnika","A4"]
[null,null,"Podajnik papieru","min. 250 arkuszy"]
[null,null,"Odbiornik papieru","min. 100 arkuszy"]
[null,null,"Szybkość druku w mono","min. 26 str./min"]
[null,null,"Maksymalna rozdzielczość druku","min. 2400 x 600 dpi"]
[null,null,"Druk dwustronny (dupleks)","Automatyczny"]
[null,null,"Interfejsy","LAN (Ethernet)"]
[null,null,null,"USB"]
[null,null,"Wyświetlacz","Wbudowany"]
[null,null,"Dołączone akcesoria","Kabel USB, kabel zasilający, pachcord UTP min. 1,8 m"]
[]
[null,null,{"$f":"CONCATENATE(\"      ilość:  \",Zestawienie!AF16)","v":"      ilość:  1"},{"$f":"Zestawienie!C16","v":"Drukarka ver. 2"}]
[null,{"$f":"Zestawienie!D16","v":"1.13"},"Technologia druku","Atramentowa, kolorowa"]
[null,null,"Maksymalny format nośnika","A4"]
[null,null,"Szybkość druku w kolorze","min. 20 str./min"]
[null,null,"Szybkość druku w mono","min. 32 str./min"]
[null,null,"Maksymalna rozdzielczość druku","min .1200 x 1200 dpi"]
[null,null,"Druk dwustronny (dupleks)","Automatyczny"]
[null,null,"Interfejsy","USB"]
[null,null,null,"LAN (Ethernet)"]
[null,null,null,"Wi-Fi"]
[null,null,"Dołączone akcesoria","Kabel USB, kabel zasilający, pachcord UTP min. 1,8 m"]
[]
[null,null,{"$f":"CONCATENATE(\"      ilość:  \",Zestawienie!AF17)","v":"      ilość:  3"},{"$f":"Zestawienie!C17","v":"Urządzenie wielofunkcyjne ver. 1"}]
[null,{"$f":"Zestawienie!D17","v":"1.14"},"Technologia druku","Laserowa, monochromatyczna"]
[null,null,"Min. obsługiwany \ntyp nośnika","Koperty"]
[null,null,null,"Papier zwykły"]
[null,null,"Obsługiwany format nośnika","Letter"]
[null,null,null,"A6"]
[null,null,null,"A5"]
[null,null,null,"A4"]
[null,null,"Podajnik papieru","250 arkuszy"]
[null,null,"Odbiornik papieru","150 arkuszy"]
[null,null,"Szybkość druku w mono","min. 40 str./min"]
[null,null,"Maksymalna rozdzielczość druku","1200 x 1200 dpi"]
[null,null,"Szybkość skanowania","3 s"]
[null,null,"Szybkość kopiowania","min. 40 str./min"]
[null,null,"Rozdzielczość skanowania","1200 x 1200 dpi"]
[null,null,"Maksymalny format skanu","A4"]
[null,null,"Miesięczne obciążenie","min 50000 str./miesiąc"]
[null,null,"Druk dwustronny (dupleks)","Automatyczny"]
[null,null,"Interfejsy","USB"]
[null,null,null,"LAN (Ethernet)"]
[null,null,null,"Wi-Fi"]
[null,null,"Wyświetlacz","Wbudowany"]
[null,null,"Dodatkowe informacje","Skanowanie do pamięci USB"]
[null,null,null,"Drukowanie bezpośrednio z nośników USB"]
[null,null,null,"Automatyczny podajnik dokumentów z funkcją skanu dwustronnego (DADF)"]
[null,null,null,"Automatyczny podajnik dokumentów (ADF)"]
[null,null,null,"Kabel zasilający, USB , pachcord UTP min. 1,8 m"]
[null,null,null,"np. MFC-L5750DW"]
[]
[null,null,{"$f":"CONCATENATE(\"      ilość:  \",Zestawienie!AF18)","v":"      ilość:  4"},{"$f":"Zestawienie!C18","v":"Urządzenie wielofunkcyjne ver. 2"}]
[null,{"$f":"Zestawienie!D18","v":"1.15"},"Technologia druku","Laserowa, monochromatyczna"]
[null,null,"Obsługiwany typ nośnika","Etykiety"]
[null,null,null,"Koperty"]
[null,null,null,"Papier fotograficzny"]
[null,null,null,"Papier zwykły"]
[null,null,"Obsługiwany format nośnika","Letter"]
[null,null,null,"A6"]
[null,null,null,"A5"]
[null,null,null,"A4"]
[null,null,"Szybkość druku w mono","min. 34 str./min"]
[null,null,"Maksymalna \nrozdzielczość druku","2400 x 600 dpi"]
[null,null,"Druk dwustronny (dupleks)","Automatyczny"]
[null,null,"Interfejsy","LAN (Ethernet)"]
[null,null,null,"Wi-Fi"]
[null,null,null,"USB"]
[null,null,"Dodatkowe informacje","Automatyczny podajnik dokumentów (ADF)"]
[null,null,null,"Kabel zasilający, USB, pachcord UTP min. 1,8 m"]
[null,null,null,"np.. MFC-B7715DW lub równoważne"]
[]
[null,null,{"$f":"CONCATENATE(\"      ilość:  \",Zestawienie!AF19)","v":"      ilość:  1"},{"$f":"Zestawienie!C19","v":"Urządzenie wielofunkcyjne ver. 3"}]
[null,{"$f":"Zestawienie!D19","v":"1.16"},"Technologia druku","Atramentowa, kolorowa"]
[null,null,"Obsługiwany typ nośnika","Papier zwykły"]
[null,null,null,"Koperty"]
[null,null,"Obsługiwany format nośnika","A4"]
[null,null,null,"A5"]
[null,null,null,"A6"]
[null,null,null,"B5"]
[null,null,null,"B6"]
[null,null,null,"DL"]
[null,null,null,"Letter"]
[null,null,null,"Formaty niestandardowe"]
[null,null,"Podajnik papieru","250 arkuszy"]
[null,null,"Szybkość druku w kolorze","20 str./min"]
[null,null,"Szybkość druku w mono","33 str./min"]
[null,null,"Maksymalna rozdzielczość druku","4800 x 2400 dpi"]
[null,null,"Rozdzielczość skanowania","2400 x 1200 dpi"]
[null,null,"Podajnik dokumentów skanera","Tak (ADF)"]
[null,null,"Maksymalny format skanu","A4"]
[null,null,"Druk dwustronny (dupleks)","Automatyczny"]
[null,null,"Interfejsy","USB"]
[null,null,null,"Wi-Fi"]
[null,null,null,"LAN (Ethernet)"]
[null,null,"Wyświetlacz","Wbudowany"]
[null,null,"Dołączone akcesoria","Kabel zasilający"]
[null,null,null,"Kabel USB, pachcord UTP min. 1,8 m"]
[]
[]
[null,null,{"$f":"CONCATENATE(\"      ilość:  \",Zestawienie!AF20)","v":"      ilość:  2"},{"$f":"Zestawienie!C20","v":"Skaner ręczny"}]
[null,{"$f":"Zestawienie!D20","v":"1.17"},"Typ skanera","Ręczny"]
[null,null,"Rozdzielczość optyczna [dpi]","min 600 x 600"]
[null,null,"Maksymalny format skanowania","210 x 297 mm"]
[null,null,"Prędkośc skanowania w czerni","3 s"]
[null,null,"Prędkość skanowania w kolorze","3 s"]
[null,null,"Formaty plików","JPEG"]
[null,null,"Złącze USB","Tak"]
[null,null,"Wysokość [mm]","ok. 30"]
[null,null,"Szerokość [mm]","ok. 257"]
[null,null,"Głębokość [mm]","ok. 30"]
[null,null,"Zasilanie","Bateryjne"]
[null,null,"Dominujący kolor","Czarno-szary"]
[]
[null,null,{"$f":"CONCATENATE(\"      ilość:  \",Zestawienie!AF21)","v":"      ilość:  6"},{"$f":"Zestawienie!C21","v":"Listwa zasilająca"}]
[null,{"$f":"Zestawienie!D21","v":"1.18"},"Typ listwy zasilającej","zabezpieczająca, antyprzepięciowa"]
[null,null,"Ilość gniazd","min. 5"]
[null,null,"Napięcie pracy maks.","250V AC"]
[null,null,"Prąd pracy maks.","10A"]
[null,null,"Kolor","czarny"]
[null,null,"Długość przewodu zaś.","min. 3m"]
[null,null,"Właściwości"," - bezpiecznik automatyczny\n - gniazda sieciowe ze stykiem ochronnym\n - wyłącznik 2-biegunowy podświetlany\n - zabezpieczenie przeciwprzepięciowe\n - Wtyk zasilający z uziemieniem\n - Uchwyty do mocowania naściennego\n"]
[]
[null,null,{"$f":"CONCATENATE(\"      ilość:  \",Zestawienie!AF22)","v":"      ilość:  2"},{"$f":"Zestawienie!C22","v":"Głośniki do komputera"}]
[null,{"$f":"Zestawienie!D22","v":"1.19"},"Rodzaj zestawu","2.0"]
[null,null,"Moc głośników (RMS)","60 W"]
[null,null,"Rodzaje wyjść / wejść","min. Wejście/wyjście stereo RCA "]
[null,null,"Dodatkowe informacje","Sterowanie wbudowane w głośnik"]
[null,null,null,"Bezprzewodowy pilot sterowania"]
[null,null,"Typ głośników","Dwudrożne aktywne"]
[null,null,"Wzmacniacz","Zintegrowany"]
[null,null,"Regulacja","power on/of, głośność"]
[null,null,"Dołączone akcesoria","Pilot, Kabel audio. Np. Edifier 2.0 R1600TIII  lub równoważne"]
[]
[null,null,{"$f":"CONCATENATE(\"      ilość:  \",Zestawienie!AF23)","v":"      ilość:  10"},{"$f":"Zestawienie!C23","v":"Switch biurkowy"}]
[null,{"$f":"Zestawienie!D23","v":"1.20"},"Architektura sieci","Gigabit Ethernet "]
[null,null,"Całkowita liczba portów","min. 8"]
[null,null,"Rodzaje wejść / wyjść","RJ-45 10/100/1000 Mbps - min.  8 szt."]
[null,null,"typ","zarządzalny"]
[null,null,"Dodatkowe informacje","Automatyczne krosowanie portów (Auto MDI-MDIX)"]
[null,null,null,"QoS, VLAN"]
[null,null,null,"np. TP-Link  TL-SG108E lub równoważny"]
[]
[null,null,{"$f":"CONCATENATE(\"      ilość:  \",Zestawienie!AF24)","v":"      ilość:  3"},{"$f":"Zestawienie!C24","v":"Router "}]
[null,{"$f":"Zestawienie!D24","v":"1.21"},"Rodzaj urządzenia","Router przewodowy"]
[null,null,"Rodzaje wejść/wyjść","RJ-45 10/100/1000 (WAN) - 1 szt."]
[null,null,null,"RJ-45 10/100/1000 (LAN) - 4 szt."]
[null,null,"Obsługiwane standardy","802.3ab"]
[null,null,null,"802.3u"]
[null,null,null,"802.3"]
[null,null,"Zarządzanie i konfiguracja","Strona WWW"]
[null,null,"Dodatkowe funkcje","Obsługa VPN"]
[null,null,"Dodatkowe informacje","Przycisk Reset"]
[null,null,"Dołączone akcesoria","Kabel RJ-45"]
[null,null,null,"Zasilacz"]
[null,null,null,"np. TP-Link TL-R600VPN lub równoważny"]
[]
[null,null,{"$f":"CONCATENATE(\"      ilość:  \",Zestawienie!AF25)","v":"      ilość:  9"},{"$f":"Zestawienie!C25","v":"Dysk zewnętrzny (przenośny) 2TB"}]
[null,{"$f":"Zestawienie!D25","v":"1.22"},"Rodzaj dysku","HDD zewnętrzny"]
[null,null,"Pojemność","2000 GB (2TB)"]
[null,null,"Format","2.5\""]
[null,null,"Interfejs","USB 3.0 "]
[null,null,"Dołączone akcesoria","Kabel USB"]
[]
[null,null,{"$f":"CONCATENATE(\"      ilość:  \",Zestawienie!AF26)","v":"      ilość:  6"},{"$f":"Zestawienie!C26","v":"Dysk twardy 2TB"}]
[null,{"$f":"Zestawienie!D26","v":"1.23"},"Rodzaj dysku","HDD wewnętrzny"]
[null,null,"Pojemność","2000 GB"]
[null,null,"Format","3.5\""]
[null,null,"Interfejs","SATA III (6.0 Gb/s) "]
[null,null,"Pamięć podręczna cache","min 64 MB"]
[null,null,"Dodatkowe informacje","Zgodność z systemami NAS  (np. WD Red)"]
[]
[null,null,{"$f":"CONCATENATE(\"      ilość:  \",Zestawienie!AF27)","v":"      ilość:  4"},{"$f":"Zestawienie!C27","v":"Dysk twardy SSD"}]
[null,{"$f":"Zestawienie!D27","v":"1.24"},"Rodzaj dysku","SSD"]
[null,null,"Pojemność","min. 512 GB"]
[null,null,"Format","2.5\""]
[null,null,"Interfejs","SATA III "]
[null,null,"Pamięć podręczna cache","256 MB"]
[null,null,"Prędkość odczytu (max)","nie mniej niź  520 MB/s"]
[null,null,"Niezawodność MTBF","min 2 000 000 godz."]
[]
[null,null,{"$f":"CONCATENATE(\"      ilość:  \",Zestawienie!AF28)","v":"      ilość:  6"},{"$f":"Zestawienie!C28","v":"Pendrive 32GB"}]
[null,{"$f":"Zestawienie!D28","v":"1.25"},"interfejs","USB 3.0 "]
[null,null,"Przykład","Kingston DataTraveler 100 G3 32GB USB 3.0"]
[null,null,"pojemność","32 GB "]
[]
[null,null,{"$f":"CONCATENATE(\"      ilość:  \",Zestawienie!AF29)","v":"      ilość:  2"},{"$f":"Zestawienie!C29","v":"Karta pamięci 16GB microSD"}]
[null,{"$f":"Zestawienie!D29","v":"1.26"},"standard","microSDHC"]
[null,null,"pojemność","16 GB"]
[null,null,"klasa prędkości","Class 10 (C10)"]
[null,null,"adapter","microSD do SD"]
[]
[null,null,{"$f":"CONCATENATE(\"      ilość:  \",Zestawienie!AF30)","v":"      ilość:  4"},{"$f":"Zestawienie!C30","v":"Myszka przewodowa"}]
[null,{"$f":"Zestawienie!D30","v":"1.27"},"Łączność","Przewodowa"]
[null,null,"Sensor","Optyczny"]
[null,null,"Rozdzielczość","2000 dpi"]
[null,null,"Liczba przycisków",7]
[null,null,"Rolka przewijania",1]
[null,null,"Długość przewodu","min. 1,8 m"]
[null,null,"Profil","Praworęczny"]
[null,null,"Kolor","Czarny"]
[]
[null,null,{"$f":"CONCATENATE(\"      ilość:  \",Zestawienie!AF31)","v":"      ilość:  1"},{"$f":"Zestawienie!C31","v":"Pamięć SODIM"}]
[null,{"$f":"Zestawienie!D31","v":"1.28"},"rodzaj pamięci","SO-DIMM "]
[null,null,"standard","DDR3-1333 (PC3-10600) "]
[null,null,"pojemność pojedynczego modułu","4 GB (1x4 GB)"]
[null,null,"przepustowość","10600 MB/s "]
[null,null,"częstotliwość pracy","1333 MHz "]
[]
[null,null,{"$f":"CONCATENATE(\"      ilość:  \",Zestawienie!AF32)","v":"      ilość:  1"},{"$f":"Zestawienie!C32","v":"Zestaw narzędzi sieciowych"}]
[null,{"$f":"Zestawienie!D32","v":"1.29"},"Zestaw narzędzi dla instalatora sieci"]
[null,null,"Zawartość","- Tester sieciowy RJ11, 12 i 45"]
[null,null,null,"- Narzędzie LSA Punch Down Tool umożliwiające cięcie przewodów"]
[null,null,null,"- Zaciskarka RJ11, 12 i 45"]
[null,null,null,"- Narzędzie do cięcia oraz demontażu"]
[null,null,null,"- Tekstylna torba"]
[]
[null,null,{"$f":"CONCATENATE(\"      ilość:  \",Zestawienie!AF33)","v":"      ilość:  2"},{"$f":"Zestawienie!C33","v":"Power bank"}]
[null,{"$f":"Zestawienie!D33","v":"1.30"},"typ","PowerBank "]
[null,null,"napięcie nominalne","5 V "]
[null,null,"prąd wyjściowy USB","min 2 A "]
[null,null,"pojemność typowa","min. 15000 mAh "]
[null,null,"porty","min.  USB 2.0 "]
[null,null,null,"wejście microUSB "]
[null,null,"akcesoria w zestawie","kabel microUSB | podręcznik użytkownika "]
[null,null,"dodatkowe informacje","cyfrowy wskaźnik naładowania"]
[null,null,null,"np. Adata P20000D 20000 mAh"]
[]
[null,null,{"$f":"CONCATENATE(\"      ilość:  \",Zestawienie!AF34)","v":"      ilość:  1"},{"$f":"Zestawienie!C34","v":"Pilot do sterowania PC z funkcja prezentera"}]
[null,{"$f":"Zestawienie!D34","v":"1.31"},"Typ","Pilot PC / przenter"]
[null,null,"Funkcje","Prezenter ze wskaźnikiem laserowym  (preferowany zielony promien lasera)"]
[null,null,null,"Zdalne sterowanie PC (funkcja myszki)"]
[null,null,null,"Zasięg do 30 m"]
[null,null,null,"Zaawansowany system wskaźnika z wydzielonym obszarem zainteresowania"]
[null,null,null,"Podświetlenie okrągłej winiety zieniującej obszar zainteresowania"]
[null,null,null,"Przewód doładowania pilota / prezentera"]
[]
[null,null,"CZĘŚĆ II - CZĘŚĆ AUDIOVIDEO"]
[]
[null,null,{"$f":"CONCATENATE(\"      ilość:  \",Zestawienie!AF36)","v":"      ilość:  1"},{"$f":"Zestawienie!C36","v":"Uchwyt projektora "}]
[null,{"$f":"Zestawienie!D36","v":"2.01"},"Typ:","sufitowy"]
[null,null,"    Maksymalna waga projektora","min. 15kg"]
[null,null,"    Regulacja w poziomie (obrót):"," 360 stopni"]
[null,null,"    Odległość od ściany:","min. 100 mm"]
[null,null,"    Blokada zabezp. Proj. przed zsunięciem:"," tak"]
[null,null,"Wysokość","min. 600 - 1020  mm"]
[null,null,"    Materiał wykonania:"," Metal"]
[]
[null,null,{"$f":"CONCATENATE(\"      ilość:  \",Zestawienie!AF37)","v":"      ilość:  1"},{"$f":"Zestawienie!C37","v":"Projektor ver. 1"}]
[null,{"$f":"Zestawienie!D37","v":"2.02"},"echnologia wyświetlania","DLP"]
[null,null,"Rozdzielczość natywna","854 x 480 (WVGA)"]
[null,null,"Rozdzielczość maksymalna","1600 x 1200 (UXGA)"]
[null,null,"Format obrazu"," 16:09"]
[null,null,"Jasność","200 lm"]
[null,null,"Kontrast","2 000:1"]
[null,null,"Wielkość rzutowanego obrazu","25\" - 100\""]
[null,null,"Minimalna odległość projekcji","0,6 m"]
[null,null,"Żywotność lampy","20 000 h (tryb normalny)"]
[null,null,null,"30 000 h (tryb ekonomiczny)"]
[null,null,"Złącza wejścia / wyjścia","Wyjście audio - 1 szt."]
[null,null,null,"HDMI - 1 szt."]
[null,null,null,"USB 2.0 - 1 szt."]
[null,null,null,"DC in (wejście zasilania) - 1 szt."]
[null,null,"Bateria","6700 mAh"]
[null,null,"Dodatkowe informacje","Możliwość zabezpieczenia linką (Kensington Lock)"]
[null,null,null,"Kabel zasilający"]
[]
[null,null,{"$f":"CONCATENATE(\"      ilość:  \",Zestawienie!AF38)","v":"      ilość:  2"},{"$f":"Zestawienie!C38","v":"Projektor ver. 2"}]
[null,{"$f":"Zestawienie!D38","v":"2.03"},"Technologia wyświetlania","DLP"]
[null,null,"Rozdzielczość natywna","1920 x 1080 (FHD)"]
[null,null,"Format obrazu"," 16:9"]
[null,null,"Jasność","3500 lm"]
[null,null,"Kontrast","20 000:1"]
[null,null,"Wielkość rzutowanego obrazu","30\" - 300\""]
[null,null,"Moc lampy","200 W"]
[null,null,"Złącza wejścia / wyjścia","Wejście audio - 2 szt."]
[null,null,null,"Wyjście audio - 1 szt."]
[null,null,null,"Wejście audio L/R (RCA) - 1 szt."]
[null,null,null,"HDMI - 2 szt."]
[null,null,null,"VGA in (D-sub) - 2 szt."]
[null,null,null,"S-Video - 1 szt."]
[null,null,null,"USB typ B - 1 szt."]
[null,null,null,"RS-232 - 1 szt."]
[null,null,null,"AC in (wejście zasilania) - 1 szt."]
[null,null,"Głośniki","Tak"]
[null,null,"Dodatkowe informacje","Możliwość regulacja zniekształcenia trapezowego‎ (Keystone)"]
[null,null,null,"Możliwość zabezpieczenia linką (Kensington Lock)\nmodel przykładowy: BenQ MH550"]
[null,null,"Dołączone akcesoria","Pilot"]
[null,null,null,"Kabel VGA"]
[null,null,null,"Kabel zasilający"]
[]
[null,null,{"$f":"CONCATENATE(\"      ilość:  \",Zestawienie!AF39)","v":"      ilość:  1"},{"$f":"Zestawienie!C39","v":"Tablica interaktywna "}]
[null,{"$f":"Zestawienie!D39","v":"2.04"},"Technologia","Technologia pozycjonowania w podczerwieni (dotykowa)"]
[null,null,"Model przykładowy","DTO-i78S"]
[null,null,"Maxymalna szerokość zewnętrzna","200 cm"]
[null,null,"Format"," 4:3"]
[null,null,"Powierzchnia tablicy","Stalowa, lakierowana, magnetyczna o wysokiej odporności na zarysowania, uszkodzenia mechaniczne; powierzchnia matowa, nie skupiająca światła, bezpieczna dla oczu uczniów i nauczycieli. Łatwa do czyszczenia, dostosowana do używania pisaków suchościeralnych."]
[null,null,"Cechy wyróżniające","Funkcja 10-touch- jednoczesna praca dziesięciu osób bez konieczności dzielenia obszaru roboczego na 10 stref!"]
[null,null,null,"Technologia rozpoznawania gestów multi gesture"]
[null,null,null,"Nie wymaga używania specjalnych pisaków – obsługiwana palcem"]
[null,null,null,"Powierzchnia umożliwiająca stosowanie pisaków suchościeralnych"]
[null,null,null,"Rozwiązanie Plug&Play- bez potrzeby instalacji sterowników"]
[null,null,"Oprogramowanie","Funkcjonalne i intuicyjne oprogramowanie pozwala na realizację takich funkcji, jak: rozpoznawanie pisma odręcznego,odtwarzanie video z możliwością „pisania” na filmie, zrzuty video, szybkie tworzenie figur geometrycznych.  Integruje się z programami pakietu MS Office pozwalając na ręczne dopisywanie notatek do dokumentów (w formie graficznej)."]
[null,null,"Wyposażenie","Półka na pisaki, kabel USB, 2 pisaki, zestaw montażowy;"]
[]
[null,null,"CZĘŚĆ III - OPROGRAMOWANIE"]
[]
[null,null,{"$f":"CONCATENATE(\"      ilość:  \",Zestawienie!AF41)","v":"      ilość:  36"},{"$f":"Zestawienie!C41","v":"Pakiet oprogramowania biurowego"}]
[null,{"$f":"Zestawienie!D41","v":"3.01"},"Rozszerzenie posiadanej i wykorzystywanej przez zamawiającego licencji na pakiet oprogramowania biurowego  \"MS Office Professional Plus 2016 (2019) EDU dla szkół i Uczelni - MOLP\" lub oprogramowanie równorzędne. Licencja wieczysta (dożywotnia).  Numer licencja MOLP zamawiającego  67862490 .\n\nWymogi równorzedności zostały opisane w \"Przypisie 2\""]
[]
[null,null,{"$f":"CONCATENATE(\"      ilość:  \",Zestawienie!AF42)","v":"      ilość:  1"},{"$f":"Zestawienie!C42","v":"Oprogramowanie edukacyjne do tablicy interaktywnej"}]
[null,{"$f":"Zestawienie!D42","v":"3.02"},"Pakiet programów zawierający:"]
[null,null,"1.\tNew English Adventure 1. Active Teach IWB. Oprogramowanie Tablic Interaktywnych\n2.\tMatura Focus 3. Active Teach IWB. Oprogramowanie Tablic Interaktywnych\n3.\tActivate! A2. Oprogramowanie Tablic Interaktywnych\n4.\tNew Language Leader Advanced Teacher's Etext DVD-Rom\n5.\tNew Language Leader Upper-Intermediate Teacher's eText DVD-Rom\n6.\tProficiency Expert. Oprogramowanie Tablicy Interaktywnej\n7.\tExpert First Third Edition. Oprogramowanie Tablicy Interaktywnej"]
[]
[null,null,{"$f":"CONCATENATE(\"      ilość:  \",Zestawienie!AF43)","v":"      ilość:  2"},{"$f":"Zestawienie!C43","v":"Microsoft Windows Home 10 32/64 bit BOX USB PL"}]
[null,{"$f":"Zestawienie!D43","v":"3.03"},"klasa produktu","systemy operacyjne"]
[null,null,"zawartość pakietu","Microsoft Windows 10"]
[null,null,"zawartość pakietu","Microsoft Windows Home 10 32/64 bit"]
[null,null,"ważność licencji","dożywotnia"]
[null,null,"format nośnika","PENDRIVE"]
[null,null,"wersja produktu","BOX"]
[null,null,"wersja językowa","polska"]
[]
[null,null,{"$f":"CONCATENATE(\"      ilość:  \",Zestawienie!AF44)","v":"      ilość:  3"},{"$f":"Zestawienie!C44","v":"Oprogramowanie WinEdit "}]
[null,{"$f":"Zestawienie!D44","v":"3.04"},"Edytor tekstowy, umożliwiający tworzenie dokumentów w formacie LaTeX, przeznaczonym dla systemu Windows."]
[null,null,"Wersja","min. 10.2, EDU"]
[null,null,"WinEDT to zaawansowane narzędzie do tworzenia dokumentów LaTeX, wyposażone w przejrzysty interfejs użytkownika. Edytor charakteryzuje pełne wsparcie dla takich funkcji jak podkreślanie składni, błędów."]
[]
[null,null,{"$f":"CONCATENATE(\"      ilość:  \",Zestawienie!AF45)","v":"      ilość:  1"},{"$f":"Zestawienie!C45","v":"Oprogramowanie do obliczeń symbolicznych."}]
[null,{"$f":"Zestawienie!D45","v":"3.05"},"Maple for academics 2018 + C570\nwersja:   Single-user licence. "]
[null,null,"Maple – program komputerowy typu CAS służący do wykonywania obliczeń symbolicznych"]
[null,null,"(informacje:  http://tobl.com.pl/produkty/maple)"]
[]
[null,null,{"$f":"CONCATENATE(\"      ilość:  \",Zestawienie!AF46)","v":"      ilość:  1"},{"$f":"Zestawienie!C46","v":"Pakiet oprogramowania biurowego dla MacOS"}]
[null,{"$f":"Zestawienie!D46","v":"3.06"},"MS Office 2016 dla MacOS"]
[null,null,"licencja","bezterminowa"]
[null,null,"Wersja ","jedno stanowiskowa"]
[]
[null,null,{"$f":"CONCATENATE(\"      ilość:  \",Zestawienie!AF47)","v":"      ilość:  1"},{"$f":"Zestawienie!C47","v":"Pinnacle Studio 22 Ultimate PL"}]
[null,{"$f":"Zestawienie!D47","v":"3.07"},"Program do edycji audio - video"]
[null,null,"licencja","bezterminowa (wieczysta)"]
[null,null,"Wersja ","komercyjna (BOX)"]
[]
[null,null,"CZĘŚĆ V - TABLICA INTERAKTYWNA"]
[]
[null,null,{"$f":"CONCATENATE(\"      ilość:  \",Zestawienie!AF51)","v":"      ilość:  1"},{"$f":"Zestawienie!C71","v":0}]
[null,{"$f":"Zestawienie!D51","v":"5.01"},"Tablica interaktywna z projektorem multimedialnym, uchwytem i usługą montażu."]
[null,null,"TABLICA"]
[null,null,"Przekątna","100\""]
[null,null,"opis","z półką na markery, jednoczesna obsługa do 4 użytkowników, technologia multigestów, powierzchnia suchościeralna, ceramoczna, magnetyczna z ikonami skrótów"]
[null,null,"Połączenia","kompatybilna z Windows 10, plug and play, połączenie z komputerem kablem USB"]
[null,null,"Sposób obsługi","palec lub dowolny wskaźnik"]
[null,null,"Akcesoria","półka na markery, przewód USB min. 3m, uchwyt do montażu ściennego, oprogramowanie do obsługi tablicy"]
[]
[null,null,"PROJEKTOR"]
[null,null,"Rozdzielczość","Full HD"]
[null,null,"Jasność","min. 3000 Ansi LM"]
[null,null,"Kontrast","min 500:1"]
[null,null,"Żywotność lam[y","min 7000 godz."]
[null,null,"Złącza","HDMI, VGA"]
[null,null,"Głośność podczas pracy","max 35 dB"]
[null,null,"Format obrazu"," 16:9, 4:3"]
[null,null,"Akcesoria","pilot, zapasowa lampa, uchwyt sufitowy do oferowanego projektora oraz niezbędne okablowanie"]
[]
[null,null,"Głośniki bezprzewodowe"]
[null,null,"układ głośników"," 2.0"]
[null,null,"moc","min 2x5 W"]
[null,null,"Połączenie bezprzew.","Bluetooth 4.0"]
[null,null,"Profil","A2DP (transmisja bezprzewodowa, stereo)"]
[null,null,"Obsługiwane kodeki","SBC"]
[null,null,"Połączenie przewodowe","kabel i wejście line-in 3,5 mm"]
[null,null,"Złącza","wejście liniowe"]
[null,null,"Akcesoria","zasilacz"]
[]
[null,null,"Usługa dostawyi montażu"]
[null,null,null,"Dostawa całego sprzętu do zamawiającego wraz z wniesieniem"]
[null,null,null,"Usługa montażu obejmująca m.in. zawieszenie tablicy, montaż uchwytu projektora w miejscu wskazanym przez Zamawiającego, podłączenie w sposób estetyczny i zgodny z zasadami sztuki okablowania zasilającego oraz transmitującego obraz (HDMI) i dane. Uruchomienie i przetestowanie całego systemu oraz przeszkolenie pracowników Zamawiającego z obsługi tablicy."]
[]
[]
[]
[null,"Przypis 1. Wymagania które musi spełniać system operacyjny ver.1 "]
[null,1,"Dostępne dwa rodzaje graficznego interfejsu użytkownika:"]
[null,null,"a. Klasyczny, umożliwiający obsługę przy pomocy klawiatury i myszy,"]
[null,null,"b. Dotykowy umożliwiający sterowanie dotykiem na urządzeniach typu tablet lub monitorach dotykowych"]
[null,2,"Interfejs użytkownika dostępny w wielu językach do wyboru – w tym polskim i angielskim"]
[null,3,"Możliwość tworzenia pulpitów wirtualnych, przenoszenia aplikacji pomiędzy pulpitami i przełączanie się pomiędzy pulpitami za pomocą skrótów klawiaturowych lub GUI."]
[null,4,"Wbudowane w system operacyjny minimum dwie przeglądarki Internetowe"]
[null,5,"Zintegrowany z systemem moduł wyszukiwania informacji (plików różnego typu, tekstów, metadanych) dostępny z kilku poziomów: poziom menu, poziom otwartego okna systemu operacyjnego; "]
[null,6,"Zlokalizowane w języku polskim, co najmniej następujące elementy: menu, pomoc, komunikaty systemowe, menedżer plików."]
[null,7,"Graficzne środowisko instalacji i konfiguracji dostępne w języku polskim"]
[null,8,"Wbudowany system pomocy w języku polskim."]
[null,9,"Możliwość przystosowania stanowiska dla osób niepełnosprawnych (np. słabo widzących)."]
[null,10,"Możliwość dokonywania aktualizacji i poprawek systemu poprzez mechanizm zarządzany przez administratora systemu Zamawiającego."]
[null,11,"Możliwość dostarczania poprawek do systemu operacyjnego w modelu peer-to-peer."]
[null,12,"Zabezpieczony hasłem hierarchiczny dostęp do systemu, konta i profile użytkowników zarządzane zdalnie; praca systemu w trybie ochrony kont użytkowników."]
[null,13,"Możliwość dołączenia systemu do usługi katalogowej on-premise lub w chmurze."]
[null,14,"Umożliwienie zablokowania urządzenia w ramach danego konta tylko do uruchamiania wybranej aplikacji - tryb \"kiosk\"."]
[null,15,"Zdalna pomoc i współdzielenie aplikacji – możliwość zdalnego przejęcia sesji zalogowanego użytkownika celem rozwiązania problemu z komputerem."]
[null,16,"Transakcyjny system plików pozwalający na stosowanie przydziałów (ang. quota) na dysku dla użytkowników oraz zapewniający większą niezawodność i pozwalający tworzyć kopie zapasowe."]
[null,17,"Oprogramowanie dla tworzenia kopii zapasowych (Backup); automatyczne wykonywanie kopii plików z możliwością automatycznego przywrócenia wersji wcześniejszej."]
[null,18,"Możliwość przywracania obrazu plików systemowych do uprzednio zapisanej postaci."]
[null,19,"Możliwość przywracania systemu operacyjnego do stanu początkowego z pozostawieniem plików użytkownika."]
[null,20,"Możliwość blokowania lub dopuszczania dowolnych urządzeń peryferyjnych za pomocą polityk grupowych (np. przy użyciu numerów identyfikacyjnych sprzętu).\""]
[null,21,"Wbudowany mechanizm wirtualizacji typu hypervisor.\""]
[null,22,"Wbudowana możliwość zdalnego dostępu do systemu i pracy zdalnej z wykorzystaniem pełnego interfejsu graficznego."]
[null,23,"Dostępność bezpłatnych biuletynów bezpieczeństwa związanych z działaniem systemu operacyjnego."]
[null,24,"Wbudowana zapora internetowa (firewall) dla ochrony połączeń internetowych, zintegrowana z systemem konsola do zarządzania ustawieniami zapory i regułami IP v4 i v6."]
[null,25,"Identyfikacja sieci komputerowych, do których jest podłączony system operacyjny, zapamiętywanie ustawień i przypisywanie do min. 3 kategorii bezpieczeństwa \n(z predefiniowanymi odpowiednio do kategorii ustawieniami zapory sieciowej, udostępniania plików itp.)."]
[null,26,"Możliwość zdefiniowania zarządzanych aplikacji w taki sposób aby automatycznie szyfrowały pliki na poziomie systemu plików. Blokowanie bezpośredniego kopiowania treści między aplikacjami zarządzanymi a niezarządzanymi."]
[null,27,"Wbudowany system uwierzytelnienia dwuskładnikowego oparty o certyfikat lub klucz prywatny oraz PIN lub uwierzytelnienie biometryczne."]
[null,28,"Wbudowane mechanizmy ochrony antywirusowej i przeciw złośliwemu oprogramowaniu z zapewnionymi bezpłatnymi aktualizacjami."]
[null,29,"Wbudowany system szyfrowania dysku twardego ze wsparciem modułu TPM"]
[null,30,"Możliwość tworzenia i przechowywania kopii zapasowych kluczy odzyskiwania do szyfrowania dysku w usługach katalogowych."]
[null,31,"Możliwość tworzenia wirtualnych kart inteligentnych."]
[null,32,"Wsparcie dla firmware UEFI i funkcji bezpiecznego rozruchu (Secure Boot)"]
[null,33,"Wbudowany w system, wykorzystywany automatycznie przez wbudowane przeglądarki filtr reputacyjny URL."]
[null,34,"Wsparcie dla IPSEC oparte na politykach – wdrażanie IPSEC oparte na zestawach reguł definiujących ustawienia zarządzanych w sposób centralny."]
[null,35,"Mechanizmy logowania w oparciu o:"]
[null,null,"a. Login i hasło,"]
[null,null,"b. Karty inteligentne i certyfikaty (smartcard),"]
[null,null,"c. Wirtualne karty inteligentne i certyfikaty (logowanie w oparciu o certyfikat chroniony poprzez moduł TPM),"]
[null,null,"d. Certyfikat/Klucz i PIN"]
[null,null,"e. Certyfikat/Klucz i uwierzytelnienie biometryczne"]
[null,36,"Wsparcie dla uwierzytelniania na bazie Kerberos v. 5"]
[null,37,"Wbudowany agent do zbierania danych na temat zagrożeń na stacji roboczej."]
[null,38,"Wsparcie .NET Framework 2.x, 3.x i 4.x – możliwość uruchomienia aplikacji działających we wskazanych środowiskach"]
[null,39,"Wsparcie dla VBScript – możliwość uruchamiania interpretera poleceń"]
[null,40,"Wsparcie dla PowerShell 5.x – możliwość uruchamiania interpretera poleceń"]
[]
[null,"Przypis 2. Wymagania dotyczące \"Pakietu oprogramowania biurowego\"  "]
[null,null,"Rozszerzenie posiadanej i wykorzystywanej przez zamawiającego licencji na pakiet oprogramowania biurowego  \"MS Office Professional Plus 2016 (2019) EDU dla szkół i Uczelni - MOLP\". Licencja wieczysta (dożywotnia).  Numer licencja MOLP zamawiającego  67862490 ."]
[null,null,"Zamawiający uzna pakiet oprogramowania biurowego za równoważny określonemu w SIWZ, gdy spełni poniższe wymagania:"]
[null,null,"Oprogramowanie biurowe w najnowszej dostępnej na rynku wersji. Zamawiający nie dopuszcza zaoferowania pakietów biurowych, programów i planów licencyjnych opartych o rozwiązania chmury oraz rozwiązań wymagających stałych opłat w okresie używania zakupionego produktu."]
[null,null,"Dla oprogramowania musi być publicznie znany cykl życia przedstawiony przez producenta systemu i dotyczący rozwoju wsparcia technicznego – w szczególności w zakresie bezpieczeństwa. Wymagane jest prawo do instalacji aktualizacji i poprawek do danej wersji oprogramowania, udostępnianych bezpłatnie przez producenta na jego stronie internetowej w okresie co najmniej 5 lat."]
[null,null,"Zamawiający wymaga, aby wszystkie elementy oprogramowania biurowego oraz jego licencja pochodziły od tego samego producenta.  Zawierające w pakiecie przynajmniej edytor tekstu, arkusz kalkulacyjny, program do tworzenia prezentacji. Aplikacja do tworzenia prezentacji powinna umożliwiać udostępnianie prezentacji przy użyciu przeglądarki internetowej bez potrzeby instalowania dodatkowych elementów ani konfigurowania. Do każdej prezentacji można dodać wciągające wideo, aby zwrócić uwagę odbiorców. Nagrania wideo można wstawiać bezpośrednio w programie, a następnie dostosowywać je, przycinać lub oznaczać najważniejsze sceny w nagraniu zakładkami, aby zwrócić na nie szczególną uwagę. Wstawiane nagrania są domyślnie osadzone, dzięki czemu nie trzeba zarządza dodatkowymi plikami wideo. Pliki programów edytora tekstów, arkusza kalkulacyjnego i programu do tworzenia prezentacji można przechowywać online i uzyskiwać do nich dostęp, przeglądać, edytować i udostępniać innym użytkownikom."]
[null,null,"Pakiet biurowy musi spełniać następujące wymagania:"]
[null,1,"Wymagania odnośnie interfejsu użytkownika:"]
[null,null,"a. Pełna polska wersja językowa interfejsu użytkownika"]
[null,null,"b. Prostota i intuicyjność obsługi, pozwalająca na pracę osobom nieposiadającym umiejętności technicznych"]
[null,null,"c. Możliwość zintegrowania uwierzytelniania użytkowników z usługą katalogową (Active Directory lub funkcjonalnie równoważną) – użytkownik raz zalogowany z poziomu \n    systemu operacyjnego stacji roboczej  ma być automatycznie rozpoznawany we wszystkich modułach oferowanego rozwiązania bez potrzeby oddzielnego monitowania \n    go o ponowne uwierzytelnienie się."]
[null,2,"Oprogramowanie musi umożliwiać tworzenie i edycję dokumentów elektronicznych w ustalonym formacie, który spełnia następujące warunki:"]
[null,null,"a. posiada kompletny i publicznie dostępny opis formatu,"]
[null,null,"c. umożliwia wykorzystanie schematów XML"]
[null,3,"Oprogramowanie musi umożliwiać dostosowanie dokumentów i szablonów do potrzeb instytucji oraz udostępniać narzędzia umożliwiające dystrybucję odpowiednich szablonów do właściwych odbiorców."]
[null,4,"W skład oprogramowania muszą wchodzić narzędzia programistyczne umożliwiające automatyzację pracy i wymianę danych pomiędzy dokumentami i aplikacjami (język makropoleceń, język skryptowy)"]
[null,5,"Do aplikacji musi być dostępna pełna dokumentacja w języku polskim."]
[null,6,"Pakiet zintegrowanych aplikacji biurowych musi zawierać:"]
[null,null,"a. Edytor tekstów"]
[null,null,"b. Arkusz kalkulacyjny"]
[null,null,"c. Narzędzie do przygotowywania i prowadzenia prezentacji"]
[null,null,"d. Narzędzie do tworzenia drukowanych materiałów informacyjnych"]
[null,null,"e. Narzędzie do zarządzania informacją prywatą (pocztą elektroniczną, kalendarzem, kontaktami i zadaniami),"]
[null,7,"Edytor tekstów musi umożliwiać:"]
[null,null,"a.  Edycję i formatowanie tekstu w języku polskim wraz z obsługą języka polskiego w zakresie sprawdzania pisowni i poprawności gramatycznej oraz funkcjonalnością słownika wyrazów \n     bliskoznacznych i autokorekty"]
[null,null,"b.  Wstawianie oraz formatowanie tabel"]
[null,null,"c.  Wstawianie oraz formatowanie obiektów graficznych"]
[null,null,"d.  Wstawianie wykresów i tabel z arkusza kalkulacyjnego (wliczając tabele przestawne)"]
[null,null,"e.  Automatyczne numerowanie rozdziałów, punktów, akapitów, tabel i rysunków"]
[null,null,"f.   Automatyczne tworzenie spisów treści"]
[null,null,"g.  Formatowanie nagłówków i stopek stron "]
[null,null,"h.  Sprawdzanie pisowni w języku polskim"]
[null,null,"i.   Śledzenie zmian wprowadzonych przez użytkowników"]
[null,null,"j.   Nagrywanie, tworzenie i edycję makr automatyzujących wykonywanie czynności"]
[null,null,"k.  Określenie układu strony (pionowa/pozioma)"]
[null,null,"l.   Wydruk dokumentów"]
[null,null,"m. Wykonywanie korespondencji seryjnej bazując na danych adresowych pochodzących z arkusza kalkulacyjnego i z narzędzia do zarządzania informacją prywatną"]
[null,null,"n.  Pracę na dokumentach utworzonych przy pomocy Microsoft Word 2003 lub Microsoft Word 2007 i 2010 z zapewnieniem bezproblemowej konwersji wszystkich elementów \n     i atrybutów dokumentu"]
[null,null,"o.  Zabezpieczenie dokumentów hasłem przed odczytem oraz przed wprowadzaniem modyfikacji"]
[null,null,"p.  Wymagana jest dostępność do oferowanego edytora tekstu bezpłatnych narzędzi (kontrolki) umożliwiających podpisanie podpisem elektronicznym pliku z zapisanym \n     dokumentem przy pomocy  certyfikatu kwalifikowanego zgodnie  z wymaganiami obowiązującego w Polsce prawa."]
[null,8,"Arkusz kalkulacyjny musi umożliwiać:"]
[null,null,"a.  Tworzenie raportów tabelarycznych"]
[null,null,"b.  Tworzenie wykresów liniowych (wraz linią trendu), słupkowych, kołowych"]
[null,null,"c.  Tworzenie arkuszy kalkulacyjnych zawierających teksty, dane liczbowe oraz formuły przeprowadzające operacje matematyczne, logiczne, tekstowe, statystyczne oraz \n     operacje na danych finansowych  i na miarach czasu."]
[null,null,"d.  Tworzenie raportów z zewnętrznych źródeł danych (inne arkusze kalkulacyjne, bazy danych zgodne z ODBC, pliki tekstowe, pliki XML, webservice)"]
[null,null,"e.  Obsługę kostek OLAP oraz tworzenie i edycję kwerend bazodanowych i webowych. Narzędzia wspomagające analizę statystyczną i finansową, analizę wariantową \n     i rozwiązywanie problemów optymalizacyjnych"]
[null,null,"f.   Tworzenie raportów tabeli przestawnych umożliwiających dynamiczną zmianę wymiarów oraz wykresów bazujących na danych z tabeli przestawnych"]
[null,null,"g.  Wyszukiwanie i zamianę danych"]
[null,null,"h.  Wykonywanie analiz danych przy użyciu formatowania warunkowego"]
[null,null,"i.   Nazywanie komórek arkusza i odwoływanie się w formułach po takiej nazwie"]
[null,null,"j.   Nagrywanie, tworzenie i edycję makr automatyzujących wykonywanie czynności"]
[null,null,"k.  Formatowanie czasu, daty i wartości finansowych z polskim formatem"]
[null,null,"l.   Zapis wielu arkuszy kalkulacyjnych w jednym pliku."]
[null,null,"m. Zachowanie pełnej zgodności z formatami plików utworzonych za pomocą oprogramowania Microsoft Excel 2003 oraz Microsoft Excel 2007 i 2010, z uwzględnieniem \n     poprawnej realizacji użytych w nich  funkcji specjalnych i makropoleceń.."]
[null,null,"n.  Zabezpieczenie dokumentów hasłem przed odczytem oraz przed wprowadzaniem modyfikacji"]
[null,9,"Narzędzie do przygotowywania i prowadzenia prezentacji musi umożliwiać:"]
[null,null,"a.  Przygotowywanie prezentacji multimedialnych, które będą:"]
[null,null,"b.  Prezentowanie przy użyciu projektora multimedialnego"]
[null,null,"c.  Drukowanie w formacie umożliwiającym robienie notatek"]
[null,null,"d.  Zapisanie jako prezentacja tylko do odczytu."]
[null,null,"e.  Nagrywanie narracji i dołączanie jej do prezentacji"]
[null,null,"f.   Opatrywanie slajdów notatkami dla prezentera"]
[null,null,"g.  Umieszczanie i formatowanie tekstów, obiektów graficznych, tabel, nagrań dźwiękowych i wideo "]
[null,null,"h.  Umieszczanie tabel i wykresów pochodzących z arkusza kalkulacyjnego"]
[null,null,"i.   Odświeżenie wykresu znajdującego się w prezentacji po zmianie danych w źródłowym arkuszu kalkulacyjnym"]
[null,null,"j.   Możliwość tworzenia animacji obiektów i całych slajdów"]
[null,null,"k.  Prowadzenie prezentacji w trybie prezentera, gdzie slajdy są widoczne na jednym monitorze lub projektorze, a na drugim widoczne są slajdy i notatki prezentera"]
[null,null,"l.   Pełna zgodność z formatami plików utworzonych za pomocą oprogramowania MS PowerPoint 2003, MS PowerPoint 2007 i 2010."]
[null,10,"Narzędzie do tworzenia drukowanych materiałów informacyjnych musi umożliwiać:"]
[null,null,"a.  Tworzenie i edycję drukowanych materiałów informacyjnych"]
[null,null,"b.  Tworzenie materiałów przy użyciu dostępnych z narzędziem szablonów: broszur, biuletynów, katalogów."]
[null,null,"c.  Edycję poszczególnych stron materiałów."]
[null,null,"d.  Podział treści na kolumny."]
[null,null,"e.  Umieszczanie elementów graficznych."]
[null,null,"f.   Wykorzystanie mechanizmu korespondencji seryjnej"]
[null,null,"g.  Płynne przesuwanie elementów po całej stronie publikacji."]
[null,null,"h.  Eksport publikacji do formatu PDF oraz TIFF."]
[null,null,"i.   Wydruk publikacji."]
[null,null,"j.   Możliwość przygotowywania materiałów do wydruku w standardzie CMYK."]
[null,11,"Narzędzie do zarządzania informacją prywatną (pocztą elektroniczną, kalendarzem, kontaktami i zadaniami) musi umożliwiać:"]
[null,null,"a.  Pobieranie i wysyłanie poczty elektronicznej z serwera pocztowego"]
[null,null,"b.  Filtrowanie niechcianej poczty elektronicznej (SPAM) oraz określanie listy zablokowanych i bezpiecznych nadawców"]
[null,null,"c.  Tworzenie katalogów, pozwalających katalogować pocztę elektroniczną"]
[null,null,"d.  Automatyczne grupowanie poczty o tym samym tytule"]
[null,null,"e.  Tworzenie reguł przenoszących automatycznie nową pocztę elektroniczną do określonych katalogów bazując na słowach zawartych w tytule, adresie nadawcy i odbiorcy"]
[null,null,"f.   Oflagowanie poczty elektronicznej z określeniem terminu przypomnienia"]
[null,null,"g.  Zarządzanie kalendarzem"]
[null,null,"h.  Udostępnianie kalendarza innym użytkownikom"]
[null,null,"i.   Przeglądanie kalendarza innych użytkowników"]
[null,null,"j.   Zapraszanie uczestników na spotkanie, co po ich akceptacji powoduje automatyczne wprowadzenie spotkania w ich kalendarzach"]
[null,null,"k.  Zarządzanie listą zadań"]
[null,null,"l.   Zlecanie zadań innym użytkownikom"]
[null,null,"m. Zarządzanie listą kontaktów"]
[null,null,"n.  Udostępnianie listy kontaktów innym użytkownikom"]
[null,null,"o.  Przeglądanie listy kontaktów innych użytkowników"]
[null,null,"p.  Możliwość przesyłania kontaktów innym użytkowników"]
[]
[null,null,"UWAGA."]
[null,null,"Obowiązek wykazania równoważności zaoferowanego pakietu oprogramowania biurowego leży  po stronie Wykonawcy. \nW tym celu Wykonawca winien przedstawić oświadczenie i dokumenty potwierdzające równoważność pakietu oprogramowania biurowego"]
[]
[]
[]
[]
[]
[null,null,null,null,"Data oraz odpis upoważnionego przedstawiciela wykonawcy"]

{"sheet":"Drukarka A3","index":2,"n_rows":45,"n_cols":4,"rows_kept":45,"cut":false,"hidden":false,"merged":[[1,1,1,2],[2,1,2,2],[17,1,17,2],[29,1,29,2],[40,1,40,2],[3,1,3,2],[21,1,21,2],[25,1,25,2]]}
[null,"ZAŁĄCZNIK 2.  Opis i parametry zamawianego sprzętu"]
[null,"CZĘŚĆ IV- URZĄDZENIE WIELOFUNKCYJNE A3"]
[null,"Opis Zamawiającego",null,"Opis Wykonawcy \n(producent i model, procesor i inne parametry )"]
[null,"URZĄDZENIE WIELOFUNKCYJNE A3"]
[null,"Stan","Używane / poleasingowe"]
[null,"Model przykładowy","Konica Minolta BizHub C224E"]
[null,"Typ","Kolorowa kserokopiarka, kopiowanie elektrostatyczne, tandemowe, pośrednie"]
[null,"Format","A5-A3, niestandardrowe rozmiary, papier transparentowy."]
[null,"Technologia  tonera","polimeryzowany"]
[null,"Prędkość kopiowania A4","do 22 kopii/min"]
[null,"Dupleks","TAK, standard"]
[null,"Czas nagrzewania","około 20 sek."]
[null,"Pojemność papieru","Standard 1150, maks. 3650 arkuszy"]
[null,"Pojemność tacy odbiorczej","maks. 250 arkusy"]
[null,"Gramatura papieru – kaseta","64-271 g/m2"]
[null,"Wymiary","ok. 615x685x779 (bez ADF i dolnej tacy na papier)"]
[null,"Waga","około 85 kg."]
[null,"Kopiarka"]
[null,"Rozdzielczość","600x 600 dpi"]
[null,"Pierwsza kopia","6,9/ 8,3 sek."]
[null,"Wielokrotność kopiowania","1-9.999 kopii"]
[null,"Drukarka"]
[null,"Rozdzielczość","1800 x 600 dpi; 1200 x 1200 dpi"]
[null,"Inrterfejs","min. 10 Base-T/100 Base-T Ethernet USB 2.0"]
[null,"Pamięć","min. 2048 MB"]
[null,"Skaner"]
[null,"Rozdzielczość","600x 600 dpi"]
[null,"Szybkość skanowania","do 80 oryginałów/min"]
[null,"Funkcje skanowania","Sieciowe skanowanie TWAIN Skanowanie do e-mail (Scan-to-Me) Skanowanie do FTP Skanowanie do SMB (Scan-to-Home) Skanowanie do skrzynki Skanowanie do WebDAV Skanowanie do DPWS Skanowanie do USB"]
[null,"Konfiguracja"]
[null,"1.","kontroler druku  z obsługą PCL 6c, PS 3, PDF 1,7, XPS"]
[null,"2.","opcja automatycznego duplex'u"]
[null,"3.","podajnik ręczmy na 150 arkuszy"]
[null,"4.","pamięć min 2GB"]
[null,"5.","opcja dysku twardego. Dysk twardy min. 250 GB"]
[null,"6.","interface 10/100/1000 Base-T Ethernet, USB 2.0"]
[null,"7.","opcja skanera sieciowego"]
[null,"8.","Oryginalna podstawka pod urządzenie"]
[null,"9.","dwuprzebiegowy automatyczny podajnik dokumentów"]
[null,"10.","komplet oryginalnych tonerów "]
[null,"Inne"]
[null,"gwarancja:","min. 2 lata"]
[null,"instalacja:","transport i instalacja w miejsce wskazane przez zamawiającego (również na jednostkach roboczych)"]
[null,"szkolenie:","szkolenie i opieka techniczna przez okres 12 miesięcy w cenie"]
[null,"wymogi:","dostawca musi być autoryzowanym serwisem Konica Minolta i posiadać ważny  certyfikat, który należy dostarczyć przed podpisaniem umowy"]

{"sheet":"Arkusz cenowy","index":3,"n_rows":61,"n_cols":12,"rows_kept":61,"cut":false,"hidden":false,"merged":[[3,0,33,1],[37,1,40,1],[60,7,60,11],[44,1,49,1]]}
[null,null,null,"ZAŁĄCZNIK  3. Formularz cenowy"]
[]
[null,null,null,null,null,"ILOŚĆ","CENA JEDN. \nNETTO","WARTOŚĆ\nNETTO","STAWKA VAT","WARTOŚĆ VAT","WARTOŚĆ VAT\nODWRÓCONY","WARTOŚĆ\nBRUTTO"]
["I",null,1,{"$f":"Zestawienie!C4","v":"Komputer stacjonarny ver. 1"},{"$f":"Zestawienie!D4","v":"1.01"},{"$f":"Zestawienie!AF4","v":8}]
[null,null,2,{"$f":"Zestawienie!C5","v":"Komputer stacjonarny ver. 2"},{"$f":"Zestawienie!D5","v":"1.02"},{"$f":"Zestawienie!AF5","v":2}]
[null,null,3,{"$f":"Zestawienie!C6","v":"Laptop 2w1"},{"$f":"Zestawienie!D6","v":"1.03"},{"$f":"Zestawienie!AF6","v":1}]
[null,null,4,{"$f":"Zestawienie!C7","v":"Monitor ver. 1"},{"$f":"Zestawienie!D7","v":"1.04"},{"$f":"Zestawienie!AF7","v":12}]
[null,null,5,{"$f":"Zestawienie!C8","v":"Monitor ver. 2"},{"$f":"Zestawienie!D8","v":"1.05"},{"$f":"Zestawienie!AF8","v":1}]
[null,null,6,{"$f":"Zestawienie!C9","v":"Komputer All in One ver. 1"},{"$f":"Zestawienie!D9","v":"1.06"},{"$f":"Zestawienie!AF9","v":1}]
[null,null,7,{"$f":"Zestawienie!C10","v":"Komputer All in One ver. 2"},{"$f":"Zestawienie!D10","v":"1.07"},{"$f":"Zestawienie!AF10","v":3}]
[null,null,8,{"$f":"Zestawienie!C11","v":"Laptop ver. 1"},{"$f":"Zestawienie!D11","v":"1.08"},{"$f":"Zestawienie!AF11","v":9}]
[null,null,9,{"$f":"Zestawienie!C12","v":"Laptop ver. 2"},{"$f":"Zestawienie!D12","v":"1.09"},{"$f":"Zestawienie!AF12","v":6}]
[null,null,10,{"$f":"Zestawienie!C13","v":"Laptop ver. 3"},{"$f":"Zestawienie!D13","v":"1.10"},{"$f":"Zestawienie!AF13","v":3}]
[null,null,11,{"$f":"Zestawienie!C14","v":"Netbook "},{"$f":"Zestawienie!D14","v":"1.11"},{"$f":"Zestawienie!AF14","v":2}]
[null,null,12,{"$f":"Zestawienie!C15","v":"Drukarka ver. 1"},{"$f":"Zestawienie!D15","v":"1.12"},{"$f":"Zestawienie!AF15","v":2}]
[null,null,13,{"$f":"Zestawienie!C16","v":"Drukarka ver. 2"},{"$f":"Zestawienie!D16","v":"1.13"},{"$f":"Zestawienie!AF16","v":1}]
[null,null,14,{"$f":"Zestawienie!C17","v":"Urządzenie wielofunkcyjne ver. 1"},{"$f":"Zestawienie!D17","v":"1.14"},{"$f":"Zestawienie!AF17","v":3}]
[null,null,15,{"$f":"Zestawienie!C18","v":"Urządzenie wielofunkcyjne ver. 2"},{"$f":"Zestawienie!D18","v":"1.15"},{"$f":"Zestawienie!AF18","v":4}]
[null,null,16,{"$f":"Zestawienie!C19","v":"Urządzenie wielofunkcyjne ver. 3"},{"$f":"Zestawienie!D19","v":"1.16"},{"$f":"Zestawienie!AF19","v":1}]
[null,null,17,{"$f":"Zestawienie!C20","v":"Skaner ręczny"},{"$f":"Zestawienie!D20","v":"1.17"},{"$f":"Zestawienie!AF20","v":2}]
[null,null,18,{"$f":"Zestawienie!C21","v":"Listwa zasilająca"},{"$f":"Zestawienie!D21","v":"1.18"},{"$f":"Zestawienie!AF21","v":6}]
[null,null,19,{"$f":"Zestawienie!C22","v":"Głośniki do komputera"},{"$f":"Zestawienie!D22","v":"1.19"},{"$f":"Zestawienie!AF22","v":2}]
[null,null,20,{"$f":"Zestawienie!C23","v":"Switch biurkowy"},{"$f":"Zestawienie!D23","v":"1.20"},{"$f":"Zestawienie!AF23","v":10}]
[null,null,21,{"$f":"Zestawienie!C24","v":"Router "},{"$f":"Zestawienie!D24","v":"1.21"},{"$f":"Zestawienie!AF24","v":3}]
[null,null,22,{"$f":"Zestawienie!C25","v":"Dysk zewnętrzny (przenośny) 2TB"},{"$f":"Zestawienie!D25","v":"1.22"},{"$f":"Zestawienie!AF25","v":9}]
[null,null,23,{"$f":"Zestawienie!C26","v":"Dysk twardy 2TB"},{"$f":"Zestawienie!D26","v":"1.23"},{"$f":"Zestawienie!AF26","v":6}]
[null,null,24,{"$f":"Zestawienie!C27","v":"Dysk twardy SSD"},{"$f":"Zestawienie!D27","v":"1.24"},{"$f":"Zestawienie!AF27","v":4}]
[null,null,25,{"$f":"Zestawienie!C28","v":"Pendrive 32GB"},{"$f":"Zestawienie!D28","v":"1.25"},{"$f":"Zestawienie!AF28","v":6}]
[null,null,26,{"$f":"Zestawienie!C29","v":"Karta pamięci 16GB microSD"},{"$f":"Zestawienie!D29","v":"1.26"},{"$f":"Zestawienie!AF29","v":2}]
[null,null,27,{"$f":"Zestawienie!C30","v":"Myszka przewodowa"},{"$f":"Zestawienie!D30","v":"1.27"},{"$f":"Zestawienie!AF30","v":4}]
[null,null,28,{"$f":"Zestawienie!C31","v":"Pamięć SODIM"},{"$f":"Zestawienie!D31","v":"1.28"},{"$f":"Zestawienie!AF31","v":1}]
[null,null,29,{"$f":"Zestawienie!C32","v":"Zestaw narzędzi sieciowych"},{"$f":"Zestawienie!D32","v":"1.29"},{"$f":"Zestawienie!AF32","v":1}]
[null,null,30,{"$f":"Zestawienie!C33","v":"Power bank"},{"$f":"Zestawienie!D33","v":"1.30"},{"$f":"Zestawienie!AF33","v":2}]
[null,null,31,{"$f":"Zestawienie!C34","v":"Pilot do sterowania PC z funkcja prezentera"},{"$f":"Zestawienie!D34","v":"1.31"},{"$f":"Zestawienie!AF34","v":1}]
[]
[null,null,null,null,null,null,null,null,"suma"]
[]
[null,"II",1,{"$f":"Zestawienie!C36","v":"Uchwyt projektora "},{"$f":"Zestawienie!D36","v":"2.01"},{"$f":"Zestawienie!AF36","v":1}]
[null,null,2,{"$f":"Zestawienie!C37","v":"Projektor ver. 1"},{"$f":"Zestawienie!D37","v":"2.02"},{"$f":"Zestawienie!AF37","v":1}]
[null,null,3,{"$f":"Zestawienie!C38","v":"Projektor ver. 2"},{"$f":"Zestawienie!D38","v":"2.03"},{"$f":"Zestawienie!AF38","v":2}]
[null,null,4,{"$f":"Zestawienie!C39","v":"Tablica interaktywna "},{"$f":"Zestawienie!D39","v":"2.04"},{"$f":"Zestawienie!AF39","v":1}]
[]
[null,null,null,null,null,null,null,null,"suma"]
[]
[null,"III",1,{"$f":"Zestawienie!C41","v":"Pakiet oprogramowania biurowego"},{"$f":"Zestawienie!D41","v":"3.01"},{"$f":"Zestawienie!AF41","v":36}]
[null,null,2,{"$f":"Zestawienie!C42","v":"Oprogramowanie edukacyjne do tablicy interaktywnej"},{"$f":"Zestawienie!D42","v":"3.02"},{"$f":"Zestawienie!AF42","v":1}]
[null,null,3,{"$f":"Zestawienie!C43","v":"Microsoft Windows Home 10 32/64 bit BOX USB PL"},{"$f":"Zestawienie!D43","v":"3.03"},{"$f":"Zestawienie!AF43","v":2}]
[null,null,4,{"$f":"Zestawienie!C44","v":"Oprogramowanie WinEdit "},{"$f":"Zestawienie!D44","v":"3.04"},{"$f":"Zestawienie!AF44","v":3}]
[null,null,5,{"$f":"Zestawienie!C45","v":"Oprogramowanie do obliczeń symbolicznych."},{"$f":"Zestawienie!D45","v":"3.05"},{"$f":"Zestawienie!AF45","v":1}]
[null,null,6,{"$f":"Zestawienie!C46","v":"Pakiet oprogramowania biurowego dla MacOS"},{"$f":"Zestawienie!D46","v":"3.06"},{"$f":"Zestawienie!AF46","v":1}]
[]
[null,null,null,null,null,null,null,null,"suma"]
[]
[null,"IV",1,{"$f":"Zestawienie!C49","v":"Urządzenie wielofunkcyjne A3"},{"$f":"Zestawienie!D49","v":"4.01"},{"$f":"Zestawienie!AF49","v":1}]
[]
[null,null,null,null,null,null,null,null,"suma"]
[]
[null,"V",1,{"$f":"Zestawienie!C51","v":"Tablica interaktywna z projektorem i montażem"},{"$f":"Zestawienie!D51","v":"5.01"},{"$f":"Zestawienie!AF51","v":1}]
[]
[null,null,null,null,null,null,null,null,"suma"]
[null,null,null,null,null,null,null,"…………..…………………………………………………………………..\nData oraz odpis upoważnionego przedstawiciela wykonawcy"]